Workbook

Sheet Cover Sheet
B1: Registered User: | G1: Free Trial Version - Not For Commercial Use | AF1: © 2017 CivilWeb
B2: Your Logo / Company Details Here | G2: Project: | AF2: By:
G3: Calculation: | M3: Manning Formula - Flow in Circular Pipe
AF4: Approved:
G5: Sheet Number: | M5: Cover Sheet | T5: Date:
H7: Although all care and attention has been taken to ensure that this program is accurate, CivilWeb gives no guarentee that it is error free. In no event will Civil Web accept any responsibility for any errors or omissions from the program or from the user of the program, or for any special, incedental or consequential damages whatsoever arising from use of this program.
H14: This program should only be used by a suitably qualified Civil or Structural Engineer, and suitable efforts should be taken to verify the results.
H18: Reverse-engineering or decompiling of this program is not allowed.
H20: This program is registered to a single user, and should not be used by any other.
H23: Registered User;
H26: By using this program you confirm your understanding and agreement with the above terms and conditions.
H29: This program remains the property of CivilWeb.
H30: www.civilweb-spreadsheets.com
H32: Revision Schedule
H34: Rev | J34: Changes | Z34: Date
H35: 0 | J35: Original | Z35: 2017-04-18

Sheet Manning Pipe Flow
B1: Registered User: | G1: Free Trial Version - Not For Commercial Use | AF1: © 2017 CivilWeb
B2: Your Logo / Company Details Here | G2: Project: | AF2: By: | BV2: flow m3/s
G3: Calculation: | M3: Manning Formula - Flow in Circular Pipe | BV3: 0.1 | BW3: 0.15 | BX3: 0.225 | BY3: 0.3 | BZ3: 0.375 | CA3: 0.45 | CB3: 0.525 | CC3: 0.6 | CD3: 0.675 | CE3: 0.75 | CF3: 0.825 | CG3: 0.9 | CH3: 1.05 | CI3: 1.2 | CJ3: 1.35 | CK3: 1.5 | CL3: 1.65 | CM3: 1.95 | CN3: 2.1 | CO3: 2.4 | CS3: 100 | CT3: =R$10/100*CS3 -> 0.3 | CU3: =IF(CT3>($R$10/2),4*(ACOS((CT3/$R$10)^0.5))*360/(2*PI()),4*(ASIN((CT3/$R$10)^0.5))*360/(2*PI())) -> 0 | CV3: =IF(CT3>($R$10/2),(($R$10^2)/8)*((PI()*2-(PI()*CU3/180)+(SIN(CU3*2*PI()/360)))),(($R$10)^2)/8*((PI()*CU3/180-SIN(CU3*2*PI()/360)))) -> 0.07068583471 | CW3: =IF(CT3>($R$10/2),(PI()*$R$10*(360-CU3)/360),(PI()*$R$10*CU3)/360) -> 0.9424777961 | CX3: =(1/$R$8)*((CV3/CW3)^(2/3))*($R$9^(1/2)) -> 12.70319037 | CY3: =CX3*CV3 -> 0.897935615
AF4: Approved: | BU4: 0.01 | BV4: =(1/$R$8)*(((PI()*((BV$3/2)^2))/(2*PI()*(BV$3/2)))^(2/3))*(($BU4*0.01)^(1/2))*(PI()*((BV$3/2)^2))*1000 -> 0.4796471314 | BW4: 1.414159978 | BX4: 4.169416043 | BY4: 8.97935615 | BZ4: 16.28065595 | CA4: 26.47414165 | CB4: 39.93435373 | CC4: 57.01535759 | CD4: 78.05461376 | CE4: 103.3757215 | CF4: =(1/$R$8)*(((PI()*((CF$3/2)^2))/(2*PI()*(CF$3/2)))^(2/3))*(($BU4*0.01)^(1/2))*(PI()*((CF$3/2)^2))*1000 -> 133.2904541 | CG4: 168.1003212 | CH4: 253.5673405 | CI4: 362.0249545 | CJ4: 495.615904 | CK4: 656.3949165 | CL4: 846.3416283 | CM4: 1321.33868 | CN4: 1610.052252 | CO4: 2298.715174 | CP4: =IF($BU4<=$R$9,$R$19,0.0000000001) -> 89.7935615 | CQ4: 1 | DA4: v | DB4: q | DC4: V | DD4: Q
G5: Sheet Number: | M5: 1 | T5: Date: | BU5: 0.1 | BV5: 1.516777408 | BW5: 4.471966508 | BX5: 13.18485121 | BY5: 28.39521735 | BZ5: 51.48395461 | CA5: 83.71858671 | CB5: 126.2835147 | CC5: 180.2983916 | CD5: 246.8303614 | CE5: 326.9027348 | CF5: 421.5014254 | CG5: 531.5798904 | CH5: 801.8503362 | CI5: 1144.823426 | CJ5: 1567.275101 | CK5: 2075.702981 | CL5: 2676.367224 | CM5: 4178.439789 | CN5: 5091.432269 | CO5: 7269.175643 | CP5: 89.7935615 | CQ5: 1 | CS5: 81.4 | CT5: =R$10/100*CS5 -> 0.2442 | CU5: =IF(CT5>($R$10/2),4*(ACOS((CT5/$R$10)^0.5))*360/(2*PI()),4*(ASIN((CT5/$R$10)^0.5))*360/(2*PI())) -> 102.1945604 | CV5: =IF(CT5>($R$10/2),(($R$10^2)/8)*((PI()*2-(PI()*CU5/180)+(SIN(CU5*2*PI()/360)))),(($R$10)^2)/8*((PI()*CU5/180-SIN(CU5*2*PI()/360)))) -> 0.06161613417 | CW5: =IF(CT5>($R$10/2),(PI()*$R$10*(360-CU5)/360),(PI()*$R$10*CU5)/360) -> 0.6749330627 | CX5: =(1/$R$8)*((CV5/CW5)^(2/3))*($R$9^(1/2)) -> 14.481975 | CY5: =CX5*CV5 -> 0.8923233147 | DA5: =CX5/CX$3 -> 1.140026606 | DB5: 0.9937497743 | DC5: =DA5*$R$18 -> 1.4481975 | DD5: =DB5*$R$19 -> 89.23233147
BU6: 0.2 | BV6: 2.145047182 | BW6: 6.324315686 | BX6: 18.6461954 | BY6: 40.15690149 | BZ6: 72.80930685 | CA6: 118.3959607 | CB6: 178.5918592 | CC6: 254.9804307 | CD6: 349.0708446 | CE6: 462.3102812 | CF6: 596.0930323 | CG6: 751.7674905 | CH6: 1133.987621 | CI6: 1619.024816 | CJ6: 2216.461704 | CK6: 2935.487307 | CL6: 3784.954826 | CM6: 5909.20622 | CN6: 7200.372567 | CO6: 10280.16678 | CP6: 89.7935615 | CQ6: 1 | CS6: 93.8 | CT6: =R$10/100*CS6 -> 0.2814 | CU6: =IF(CT6>($R$10/2),4*(ACOS((CT6/$R$10)^0.5))*360/(2*PI()),4*(ASIN((CT6/$R$10)^0.5))*360/(2*PI())) -> 57.67290577 | CV6: =IF(CT6>($R$10/2),(($R$10^2)/8)*((PI()*2-(PI()*CU6/180)+(SIN(CU6*2*PI()/360)))),(($R$10)^2)/8*((PI()*CU6/180-SIN(CU6*2*PI()/360)))) -> 0.06886813798 | CW6: =IF(CT6>($R$10/2),(PI()*$R$10*(360-CU6)/360),(PI()*$R$10*CU6)/360) -> 0.7914904818 | CX6: =(1/$R$8)*((CV6/CW6)^(2/3))*($R$9^(1/2)) -> 14.02556593 | CY6: =CX6*CV6 -> 0.9659146094 | DA6: 1.104097909 | DB6: 1.075705867 | DC6: =DA6*$R$18 -> 1.402556593 | DD6: =DB6*$R$19 -> 96.59146094
H7: Pipe Info | BU7: 0.3 | BV7: 2.627135535 | BW7: 7.745673201 | BX7: 22.83683218 | BY7: 49.18195915 | BZ7: 89.17282516 | CA7: 145.0048457 | CB7: 218.7294636 | CC7: 312.2859748 | CD7: 427.5227267 | CE7: 566.2121459 | CF7: 730.0618842 | CG7: 920.7233785 | CH7: 1388.845522 | CI7: 1982.892339 | CJ7: 2714.600105 | CK7: 3595.223024 | CL7: 4635.604012 | CM7: 7237.270012 | CN7: 8818.619373 | CO7: 12590.58154 | CP7: 89.7935615 | CQ7: 1 | CS7: =P66 -> 55 | CT7: =R$10/100*CS7 -> 0.165 | CU7: =IF(CT7>($R$10/2),4*(ACOS((CT7/$R$10)^0.5))*360/(2*PI()),4*(ASIN((CT7/$R$10)^0.5))*360/(2*PI())) -> 168.521659 | CV7: =IF(CT7>($R$10/2),(($R$10^2)/8)*((PI()*2-(PI()*CU7/180)+(SIN(CU7*2*PI()/360)))),(($R$10)^2)/8*((PI()*CU7/180-SIN(CU7*2*PI()/360)))) -> 0.03983540606 | CW7: =IF(CT7>($R$10/2),(PI()*$R$10*(360-CU7)/360),(PI()*$R$10*CU7)/360) -> 0.5012891244 | CX7: =(1/$R$8)*((CV7/CW7)^(2/3))*($R$9^(1/2)) -> 13.2025942 | CY7: =CX7*CV7 -> 0.5259307012 | DA7: 1.03931326 | DB7: 0.5857109267 | DC7: =DA7*$R$18 -> 1.32025942 | DD7: =DB7*$R$19 -> 52.59307012
H8: Roughness Coefficient (n) | R8: 0.014 | BU8: 0.4 | BV8: 3.033554817 | BW8: 8.943933015 | BX8: 26.36970242 | BY8: 56.79043471 | BZ8: 102.9679092 | CA8: 167.4371734 | CB8: 252.5670294 | CC8: 360.5967832 | CD8: 493.6607227 | CE8: 653.8054697 | CF8: 843.0028508 | CG8: 1063.159781 | CH8: 1603.700672 | CI8: 2289.646852 | CJ8: 3134.550202 | CK8: 4151.405961 | CL8: 5352.734448 | CM8: 8356.879579 | CN8: 10182.86454 | CO8: 14538.35129 | CP8: 89.7935615 | CQ8: 1
H9: Hydraulic Gradient (s) | R9: 1 | V9: % | AF9: = | AG9: =R9/100 -> 0.01 | AI9: m/m | BU9: 0.5 | BV9: 3.391617392 | BW9: 9.999621104 | BX9: 29.48222357 | BY9: 63.49363624 | BZ9: 115.1216223 | CA9: 187.2004509 | CB9: 282.3785233 | CC9: 403.1594598 | CD9: 551.9294669 | CE9: 730.9767371 | CF9: 942.5058398 | CG9: 1188.64877 | CH9: 1792.99186 | CI9: 2559.903003 | CJ9: 3504.533666 | CK9: 4641.412966 | CL9: 5984.539046 | CM9: 9343.275409 | CN9: 11384.78866 | CO9: 16254.37088 | CP9: 89.7935615 | CQ9: 1 | CS9: 0 | CT9: =R$10/100*CS9 -> 0 | CU9: =IF(CT9>($R$10/2),4*(ACOS((CT9/$R$10)^0.5))*360/(2*PI()),4*(ASIN((CT9/$R$10)^0.5))*360/(2*PI())) -> 0 | CV9: =IF(CT9>($R$10/2),(($R$10^2)/8)*((PI()*2-(PI()*CU9/180)+(SIN(CU9*2*PI()/360)))),(($R$10)^2)/8*((PI()*CU9/180-SIN(CU9*2*PI()/360)))) -> 0 | CW9: =IF(CT9>($R$10/2),(PI()*$R$10*(360-CU9)/360),(PI()*$R$10*CU9)/360) -> 0 | CX9: =(1/$R$8)*((CV9/CW9)^(2/3))*($R$9^(1/2)) ->  | CY9: =CX9*CV9 ->  | DA9: =CX9/CX$3 ->  | DB9: =CY9/CY$3 ->  | DC9: 0 | DD9: 0 | DF9: =DD$6 -> 96.59146094 | DG9: =IF(CS9>=P$66,N$67,-10000000) -> -10000000 | DH9: =IF(CS9<P$66,N$68,ERROR.TYPE(1)) -> 52.59307012
H10: Internal Diameter (D) | R10: 0.3 | V10: m | AF10: or 1 in | AI10: =100/R9 -> 100 | BU10: 0.6 | BV10: 3.715330704 | BW10: 10.95403609 | BX10: 32.29615779 | BY10: 69.55379365 | BZ10: 126.1094187 | CA10: 205.0678194 | CB10: 309.3301739 | CC10: 441.6390609 | CD10: 604.6084384 | CE10: 800.7448958 | CF10: 1032.463418 | CG10: 1302.099489 | CH10: 1964.124174 | CI10: 2804.233239 | CJ10: 3839.024284 | CK10: 5084.41316 | CL10: 6555.734064 | CM10: 10235.0454 | CN10: 12471.41112 | CO10: 17805.77118 | CP10: 89.7935615 | CQ10: 1 | CS10: 1 | CT10: 0.003 | CU10: 22.95668191 | CV10: 0.0001196393546 | CW10: 0.0601004527 | CX10: 1.130323725 | CY10: =CX10*CV10 -> 0.000135231201 | DA10: 0.0889795155 | DB10: 0.0001506023357 | DC10: =DA10*$R$18 -> 0.1130323725 | DD10: =DB10*$R$19 -> 0.0135231201 | DF10: 96.59146094 | DG10: -10000000 | DH10: 52.59307012
BU11: 0.7 | BV11: 4.013015817 | BW11: 11.83171125 | BX11: 34.88383737 | BY11: 75.12668354 | BZ11: 136.2137404 | CA11: 221.4985605 | CB11: 334.1147746 | CC11: 477.024706 | CD11: 653.0517522 | CE11: 864.9033393 | CF11: 1115.187949 | CG11: 1406.428192 | CH11: 2121.496578 | CI11: 3028.91808 | CJ11: 4146.620154 | CK11: 5491.793882 | CL11: 7081.002092 | CM11: 11055.11255 | CN11: 13470.6636 | CO11: 19232.43099 | CP11: 89.7935615 | CQ11: 1 | CS11: 2 | CT11: 0.006 | CU11: 32.52040942 | CV11: 0.0003373674572 | CW11: 0.08513823276 | CX11: 1.788645752 | CY11: =CX11*CV11 -> 0.0006034308691 | DA11: 0.140802877 | DB11: 0.0006720201973 | DC11: 0.1788645752 | DD11: 0.06034308691 | DF11: 96.59146094 | DG11: -10000000 | DH11: 52.59307012
BU12: 0.8 | BV12: 4.290094364 | BW12: 12.64863137 | BX12: 37.29239079 | BY12: 80.31380298 | BZ12: 145.6186137 | CA12: 236.7919215 | CB12: 357.1837184 | CC12: 509.9608613 | CD12: 698.1416893 | CE12: 924.6205623 | CF12: 1192.186065 | CG12: 1503.534981 | CH12: 2267.975241 | CI12: 3238.049631 | CJ12: 4432.923408 | CK12: 5870.974613 | CL12: 7569.909653 | CM12: 11818.41244 | CN12: 14400.74513 | CO12: 20560.33356 | CP12: 89.7935615 | CQ12: 1 | CS12: 3 | CT12: 0.009 | CU12: 39.89688718 | CV12: 0.0006178960264 | CW12: 0.1044498064 | CX12: 2.336381756 | CY12: =CX12*CV12 -> 0.001443641003 | DA12: 0.1839208646 | DB12: 0.001607733316 | DC12: 0.2336381756 | DD12: 0.1443641003 | DF12: 96.59146094 | DG12: -10000000 | DH12: 52.59307012
BU13: 0.9 | BV13: 4.550332225 | BW13: 13.41589952 | BX13: 39.55455362 | BY13: 85.18565206 | BZ13: 154.4518638 | CA13: 251.1557601 | CB13: 378.8505441 | CC13: 540.8951748 | CD13: 740.4910841 | CE13: 980.7082045 | CF13: 1264.504276 | CG13: 1594.739671 | CH13: 2405.551009 | CI13: 3434.470278 | CJ13: 4701.825303 | CK13: 6227.108942 | CL13: 8029.101673 | CM13: 12535.31937 | CN13: 15274.29681 | CO13: 21807.52693 | CP13: 89.7935615 | CQ13: 1 | CS13: 4 | CT13: 0.012 | CU13: 46.14783613 | CV13: 0.0009483964075 | CW13: 0.1208147525 | CX13: 2.821317215 | CY13: =CX13*CV13 -> 0.002675727111 | DA13: 0.2220951692 | DB13: 0.002979865222 | DC13: 0.2821317215 | DD13: 0.2675727111 | DF13: 96.59146094 | DG13: -10000000 | DH13: 52.59307012
BU14: 1 | BV14: =(1/$R$8)*(((PI()*((BV$3/2)^2))/(2*PI()*(BV$3/2)))^(2/3))*(($BU14*0.01)^(1/2))*(PI()*((BV$3/2)^2))*1000 -> 4.796471314 | BW14: 14.14159978 | BX14: 41.69416043 | BY14: 89.7935615 | BZ14: 162.8065595 | CA14: 264.7414165 | CB14: 399.3435373 | CC14: 570.1535759 | CD14: 780.5461376 | CE14: 1033.757215 | CF14: =(1/$R$8)*(((PI()*((CF$3/2)^2))/(2*PI()*(CF$3/2)))^(2/3))*(($BU14*0.01)^(1/2))*(PI()*((CF$3/2)^2))*1000 -> 1332.904541 | CG14: 1681.003212 | CH14: 2535.673405 | CI14: 3620.249545 | CJ14: 4956.15904 | CK14: 6563.949165 | CL14: 8463.416283 | CM14: 13213.3868 | CN14: 16100.52252 | CO14: 22987.15174 | CP14: 89.7935615 | CQ14: 1 | CS14: 5 | CT14: 0.015 | CU14: 51.68386553 | CV14: 0.001321332905 | CW14: 0.1353080435 | CX14: 3.263355508 | CY14: 0.004311979013 | DA14: 0.2568925925 | DB14: 0.004802102668 | DC14: 0.3263355508 | DD14: 0.4311979013 | DF14: 96.59146094 | DG14: -10000000 | DH14: 52.59307012
BU15: 1.1 | BV15: 5.030581554 | BW15: 14.83183498 | BX15: 43.72920437 | BY15: 94.17628181 | BZ15: 170.7529602 | CA15: 277.6631401 | CB15: 418.8350354 | CC15: 597.9821152 | CD15: 818.6436955 | CE15: 1084.213714 | CF15: 1397.962077 | CG15: 1763.051043 | CH15: 2659.436703 | CI15: 3796.949755 | CJ15: 5198.063454 | CK15: 6884.327963 | CL15: 8876.505884 | CM15: 13858.31699 | CN15: 16886.37048 | CO15: 24109.12814 | CP15: 1e-10 | CQ15: =IF($BU15<=$R$9,$R$19,"") ->  | CS15: 6 | CT15: 0.018 | CU15: 56.71527315 | CV15: 0.00173153891 | CW15: 0.1484802379 | CX15: 3.673226408 | CY15: 0.006360334449 | DA15: 0.2891577863 | DB15: 0.007083285643 | DC15: 0.3673226408 | DD15: 0.6360334449 | DF15: 96.59146094 | DG15: -10000000 | DH15: 52.59307012
BU16: 1.2 | BV16: 5.25427107 | BW16: 15.4913464 | BX16: 45.67366436 | BY16: 98.3639183 | BZ16: 178.3456503 | CA16: 290.0096914 | CB16: 437.4589272 | CC16: 624.5719495 | CD16: 855.0454534 | CE16: 1132.424292 | CF16: 1460.123768 | CG16: 1841.446757 | CH16: 2777.691045 | CI16: 3965.784679 | CJ16: 5429.200209 | CK16: 7190.446048 | CL16: 9271.208024 | CM16: 14474.54002 | CN16: 17637.23875 | CO16: 25181.16308 | CP16: 1e-10 | CS16: 7 | CT16: 0.021 | CU16: 61.36683422 | CV16: 0.002175160186 | CW16: 0.1606579963 | CX16: 4.057556386 | CY16: 0.008825835102 | DA16: 0.3194123891 | DB16: 0.009829028891 | DC16: 0.4057556386 | DD16: 0.8825835102 | DF16: 96.59146094 | DG16: -10000000 | DH16: 52.59307012
H17: Results When Flowing Full | BU17: 1.3 | BV17: 5.46881872 | BW17: 16.12390455 | BX17: 47.53865709 | BY17: 102.3804121 | BZ17: 185.6280382 | CA17: 301.8516571 | CB17: 455.3216875 | CC17: 650.0750958 | CD17: 889.9595242 | CE17: 1178.664573 | CF17: 1519.745002 | CG17: 1916.638552 | CH17: 2891.112503 | CI17: 4127.719564 | CJ17: 5650.89074 | CK17: 7484.053529 | CL17: 9649.779259 | CM17: 15065.57891 | CN17: 18357.42011 | CO17: 26209.38551 | CP17: 1e-10 | CS17: 8 | CT17: 0.024 | CU17: 65.71976076 | CV17: 0.002649161915 | CW17: 0.1720539313 | CX17: 4.420803716 | CY17: 0.01171142484 | DA17: 0.3480073577 | DB17: 0.0130426109 | DC17: 0.4420803716 | DD17: 1.171142484 | DF17: 96.59146094 | DG17: -10000000 | DH17: 52.59307012
H18: Velocity (v) | R18: =(1/$R$8)*(((PI()*((R10/2)^2))/(2*PI()*(R10/2)))^(2/3))*(($R$9*0.01)^(1/2)) -> 1.270319037 | V18: m/s | BU18: 1.4 | BV18: 5.675261394 | BW18: 16.73256652 | BX18: 49.33319591 | BY18: 106.2451748 | BZ18: 192.6353191 | CA18: 313.2462684 | CB18: 472.5096456 | CC18: 674.6148087 | CD18: 923.5546449 | CE18: 1223.158033 | CF18: 1577.113922 | CG18: 1988.989824 | CH18: 3000.249234 | CI18: 4283.537028 | CJ18: 5864.206459 | CK18: 7766.56939 | CL18: 10014.04919 | CM18: 15634.2901 | CN18: 19050.39516 | CO18: 27198.76474 | CP18: 1e-10 | CS18: 9 | CT18: 0.027 | CU18: 69.83041249 | CV18: 0.003151062471 | CW18: 0.1828155924 | CX18: 4.766151216 | CY18: 0.01501844023 | DA18: 0.3751932448 | DB18: 0.01672552016 | DC18: 0.4766151216 | DD18: 1.501844023 | DF18: 96.59146094 | DG18: -10000000 | DH18: 52.59307012
H19: Flow (Q) | R19: =R18*(PI()*((R10/2)^2))*1000 -> 89.7935615 | V19: l/s | AF19: = | AG19: =R19/1000 -> 0.0897935615 | AI19: m³/s | BU19: 1.5 | BV19: 5.874453643 | BW19: 17.31985181 | BX19: 51.06470915 | BY19: 109.9742039 | BZ19: 199.3964988 | CA19: 324.2406921 | CB19: 489.0939493 | CC19: 698.292668 | CD19: 955.9698789 | CE19: 1266.088848 | CF19: 1632.468001 | CG19: 2058.800063 | CH19: 3105.552998 | CI19: 4433.882063 | CJ19: 6070.030365 | CK19: 8039.163076 | CL19: 10365.52569 | CM19: 16183.02772 | CN19: 19719.03239 | CO19: 28153.3962 | CP19: 1e-10 | CS19: 10 | CT19: 0.03 | CU19: 73.73979529 | CV19: 0.003678774948 | CW19: 0.1930503326 | CX19: 5.095972492 | CY19: 0.01874693594 | DA19: 0.4011569017 | DB19: 0.02087781755 | DC19: 0.5095972492 | DD19: 1.874693594 | DF19: 96.59146094 | DG19: -10000000 | DH19: 52.59307012
BU20: 1.6 | BV20: 6.067109634 | BW20: 17.88786603 | BX20: 52.73940483 | BY20: 113.5808694 | BZ20: 205.9358184 | CA20: 334.8743468 | CB20: 505.1340588 | CC20: 721.1935664 | CD20: 987.3214454 | CE20: 1307.610939 | CF20: 1686.005702 | CG20: 2126.319562 | CH20: 3207.401345 | CI20: 4579.293704 | CJ20: 6269.100404 | CK20: 8302.811922 | CL20: 10705.4689 | CM20: 16713.75916 | CN20: 20365.72908 | CO20: 29076.70257 | CP20: 1e-10 | CS20: 11 | CT20: 0.033 | CU20: 77.4788492 | CV20: 0.004230505996 | CW20: 0.2028391529 | CX20: 5.412097961 | CY20: 0.02289591288 | DA20: 0.4260424194 | DB20: 0.02549839041 | DC20: 0.5412097961 | DD20: 2.289591288 | DF20: 96.59146094 | DG20: -10000000 | DH20: 52.59307012
BU21: 1.7 | BV21: 6.253833466 | BW21: 18.43839027 | BX21: 54.36253419 | BY21: 117.0764804 | BZ21: 212.2737829 | CA21: 345.1805758 | CB21: 520.6802698 | CC21: 743.3893127 | CD21: 1017.707651 | CE21: 1347.854505 | CF21: 1737.894898 | CG21: 2191.760037 | CH21: 3306.113632 | CI21: 4720.227908 | CJ21: 6462.040786 | CK21: 8558.342636 | CL21: 11034.94476 | CM21: 17228.1486 | CN21: 20992.51303 | CO21: 29971.57899 | CP21: 1e-10 | CS21: 12 | CT21: 0.036 | CU21: 81.07160422 | CV21: 0.004804687727 | CW21: 0.2122449635 | CX21: 5.715977095 | CY21: 0.027463485 | DA21: 0.449963901 | DB21: 0.03058513833 | DC21: 0.5715977095 | DD21: 2.7463485 | DF21: 96.59146094 | DG21: -10000000 | DH21: 52.59307012
BU22: 1.8 | BV22: 6.435141546 | BW22: 18.97294706 | BX22: 55.93858619 | BY22: 120.4707045 | BZ22: 218.4279206 | CA22: 355.1878822 | CB22: 535.7755775 | CC22: 764.941292 | CD22: 1047.212534 | CE22: 1386.930844 | CF22: 1788.279097 | CG22: 2255.302472 | CH22: 3401.962862 | CI22: 4857.074447 | CJ22: 6649.385112 | CK22: 8806.46192 | CL22: 11354.86448 | CM22: 17727.61866 | CN22: 21601.1177 | CO22: 30840.50034 | CP22: 1e-10 | CS22: 13 | CT22: 0.039 | CU22: 84.53716886 | CV22: 0.005399929924 | CW22: 0.2213177905 | CX22: 6.008782669 | CY22: 0.03244700534 | DA22: 0.4730136676 | DB22: 0.03613511348 | DC22: 0.6008782669 | DD22: 3.244700534 | DF22: 96.59146094 | DG22: -10000000 | DH22: 52.59307012
BU23: 1.9 | BV23: 6.611479443 | BW23: 19.49285009 | BX23: 57.471434 | BY23: 123.7718829 | BZ23: 224.4133554 | CA23: 364.9208592 | CB23: 550.4570788 | CC23: 785.9024687 | CD23: 1075.908601 | CE23: 1424.935985 | CF23: 1837.282118 | CG23: 2317.103023 | CH23: 3495.184584 | CI23: 4990.169622 | CJ23: 6831.593782 | CK23: 9047.779529 | CL23: 11666.01427 | CM23: 18213.39678 | CN23: 22193.03874 | CO23: 31685.60203 | CP23: 1e-10 | CS23: 14 | CT23: 0.042 | CU23: 87.89103912 | CV23: 0.006014985358 | CW23: 0.2300982024 | CX23: 6.291480624 | CY23: 0.03784316383 | DA23: 0.4952677587 | DB23: 0.04214462953 | DC23: 0.6291480624 | DD23: 3.784316383 | DF23: 96.59146094 | DG23: -10000000 | DH23: 52.59307012
BU24: 2 | BV24: =(1/$R$8)*(((PI()*((BV$3/2)^2))/(2*PI()*(BV$3/2)))^(2/3))*(($BU24*0.01)^(1/2))*(PI()*((BV$3/2)^2))*1000 -> 6.783234784 | BW24: 19.99924221 | BX24: 58.96444715 | BY24: 126.9872725 | BZ24: 230.2432445 | CA24: 374.4009017 | CB24: 564.7570466 | CC24: 806.3189197 | CD24: 1103.858934 | CE24: 1461.953474 | CF24: =(1/$R$8)*(((PI()*((CF$3/2)^2))/(2*PI()*(CF$3/2)))^(2/3))*(($BU24*0.01)^(1/2))*(PI()*((CF$3/2)^2))*1000 -> 1885.01168 | CG24: 2377.297541 | CH24: 3585.983719 | CI24: 5119.806005 | CJ24: 7009.067331 | CK24: 9282.825932 | CL24: 11969.07809 | CM24: 18686.55082 | CN24: 22769.57731 | CO24: 32508.74176 | CP24: 1e-10 | CS24: 15 | CT24: 0.045 | CU24: 91.145992 | CV24: 0.006648723904 | CW24: 0.2386196491 | CX24: 6.564878535 | CY24: 0.04364806484 | DA24: 0.5167897467 | DB24: 0.04860934806 | DC24: 0.6564878535 | DD24: 4.364806484 | DF24: 96.59146094 | DG24: -10000000 | DH24: 52.59307012
BU25: 2.1 | BV25: 6.950747287 | BW25: 20.49312503 | BX25: 60.42057869 | BY25: 130.1232329 | BZ25: 235.9291191 | CA25: 383.6467607 | CB25: 578.7037651 | CC25: 826.2310272 | CD25: 1131.118815 | CE25: 1498.056527 | CF25: 1931.562187 | CG25: 2436.005086 | CH25: 3674.539862 | CI25: 5246.240007 | CJ25: 7182.156786 | CK25: 9512.066029 | CL25: 12264.65539 | CM25: 19148.01662 | CN25: 23331.87377 | CO25: 33311.54762 | CP25: 1e-10 | CS25: 16 | CT25: 0.048 | CU25: 94.31271391 | CV25: 0.007300112772 | CW25: 0.2469101076 | CX25: 6.829660221 | CY25: 0.04985728981 | DA25: 0.5376334622 | DB25: 0.05552434827 | DC25: 0.6829660221 | DD25: 4.985728981 | DF25: 96.59146094 | DG25: -10000000 | DH25: 52.59307012
BU26: 2.2 | BV26: 7.114316661 | BW26: 20.97538218 | BX26: 61.8424339 | BY26: 133.185375 | BZ26: 241.4811521 | CA26: 392.6749785 | CB26: 592.3221875 | CC26: 845.6744174 | CD26: 1157.737017 | CE26: 1533.309739 | CF26: 1977.016928 | CG26: 2493.330696 | CH26: 3761.011454 | CI26: 5369.697839 | CJ26: 7351.171834 | CK26: 9735.909973 | CL26: 12553.27501 | CM26: 19598.61984 | CN26: 23880.93416 | CO26: 34095.456 | CP26: 1e-10 | CS26: 17 | CT26: 0.051 | CU26: 97.40025442 | CV26: 0.007968201091 | CW26: 0.2549932698 | CX26: 7.086411094 | CY26: 0.0564659486 | DA26: 0.557844989 | DB26: 0.06288418419 | DC26: 0.7086411094 | DD26: 5.64659486 | DF26: 96.59146094 | DG26: -10000000 | DH26: 52.59307012
BU27: 2.3 | BV27: 7.274208909 | BW27: 21.44679795 | BX27: 63.23232505 | BY27: 136.1786785 | BZ27: 246.9083725 | CA27: 401.5002372 | CB27: 605.6344606 | CC27: 864.68071 | CD27: 1183.756828 | CE27: 1567.770441 | CF27: 2021.449823 | CG27: 2549.367596 | CH27: 3845.53912 | CI27: 5490.380275 | CJ27: 7516.387336 | CK27: 9954.721787 | CL27: 12835.4063 | CM27: 20039.09326 | CN27: 24417.65138 | CO27: 34861.7417 | CP27: 1e-10 | CS27: 18 | CT27: 0.054 | CU27: 100.416361 | CV27: 0.008652107694 | CW27: 0.2628894184 | CX27: 7.335637101 | CY27: 0.0634687222 | DA27: 0.5774641555 | DB27: 0.07068293221 | DC27: 0.7335637101 | DD27: 6.34687222 | DF27: 96.59146094 | DG27: -10000000 | DH27: 52.59307012
BU28: 2.4 | BV28: 7.430661408 | BW28: 21.90807218 | BX28: 64.59231559 | BY28: 139.1075873 | BZ28: 252.2188375 | CA28: 410.1356388 | CB28: 618.6603478 | CC28: 883.2781217 | CD28: 1209.216877 | CE28: 1601.489792 | CF28: 2064.926836 | CG28: 2604.198978 | CH28: 3928.248348 | CI28: 5608.466478 | CJ28: 7678.048569 | CK28: 10168.82632 | CL28: 13111.46813 | CM28: 20470.09081 | CN28: 24942.82224 | CO28: 35611.54235 | CP28: 1e-10 | CS28: 19 | CT28: 0.057 | CU28: 103.3677311 | CV28: 0.009351011284 | CW28: 0.2706160871 | CX28: 7.577779168 | CY28: 0.07085989851 | DA28: 0.5965256716 | DB28: 0.07891423096 | DC28: 0.7577779168 | DD28: 7.085989851 | DF28: 96.59146094 | DG28: -10000000 | DH28: 52.59307012
BU29: 2.5 | BV29: 7.583887042 | BW29: 22.35983254 | BX29: 65.92425604 | BY29: 141.9760868 | BZ29: 257.419773 | CA29: 418.5929335 | CB29: 631.4175734 | CC29: 901.491958 | CD29: 1234.151807 | CE29: 1634.513674 | CF29: 2107.507127 | CG29: 2657.899452 | CH29: 4009.251681 | CI29: 5724.11713 | CJ29: 7836.375506 | CK29: 10378.5149 | CL29: 13381.83612 | CM29: 20892.19895 | CN29: 25457.16135 | CO29: 36345.87821 | CP29: 1e-10 | CS29: 20 | CT29: 0.06 | CU29: 106.2602047 | CV29: 0.01006414241 | CW29: 0.2781885654 | CX29: 7.813224381 | CY29: 0.07863340281 | DA29: 0.6150600087 | DB29: 0.08757131525 | DC29: 0.7813224381 | DD29: 7.863340281 | DF29: 96.59146094 | DG29: -10000000 | DH29: 52.59307012
BU30: 2.6 | BV30: 7.734077603 | BW30: 22.80264449 | BX30: 67.22981359 | BY30: 144.7877674 | BZ30: 262.5176892 | CA30: 426.8827073 | CB30: 643.9221056 | CC30: 919.345017 | CD30: 1258.592829 | CE30: 1666.883424 | CF30: 2149.243993 | CG30: 2710.536234 | CH30: 4088.650511 | CI30: 5837.476989 | CJ30: 7991.566324 | CK30: 10584.05 | CL30: 13646.8487 | CM30: 21305.94602 | CN30: 25961.31249 | CO30: 37065.66845 | CP30: 1e-10 | CS30: 21 | CT30: 0.063 | CU30: 109.0989147 | CV30: 0.01079077682 | CW30: 0.2856202908 | CX30: 8.042314763 | CY30: 0.08678282376 | DA30: 0.633094091 | DB30: 0.09664704497 | DC30: 0.8042314763 | DD30: 8.678282376 | DF30: 96.59146094 | DG30: -10000000 | DH30: 52.59307012
BU31: 2.7 | BV31: 7.881406606 | BW31: 23.2370196 | BX31: 68.51049655 | BY31: 147.5458774 | BZ31: 267.5184755 | CA31: 435.0145371 | CB31: 656.1883908 | CC31: 936.8579243 | CD31: 1282.56818 | CE31: 1698.636438 | CF31: 2190.185653 | CG31: 2762.170136 | CH31: 4166.536567 | CI31: 5948.677018 | CJ31: 8143.800314 | CK31: 10785.66907 | CL31: 13906.81204 | CM31: 21711.81003 | CN31: 26455.85812 | CO31: 37771.74463 | CP31: 1e-10 | CS31: 22 | CT31: 0.066 | CU31: 111.8884045 | CV31: 0.01153023 | CW31: 0.292923158 | CX31: 8.265354268 | CY31: 0.09530143577 | DA31: 0.6506518461 | DB31: 0.1061339301 | DC31: 0.8265354268 | DD31: 9.530143577 | DF31: 96.59146094 | DG31: -10000000 | DH31: 52.59307012
BU32: 2.8 | BV32: 8.026031634 | BW32: 23.6634225 | BX32: 69.76767474 | BY32: 150.2533671 | BZ32: 272.4274808 | CA32: 442.9971211 | CB32: 668.2295491 | CC32: 954.0494119 | CD32: 1306.103504 | CE32: 1729.806679 | CF32: 2230.375898 | CG32: 2812.856384 | CH32: 4242.993157 | CI32: 6057.83616 | CJ32: 8293.240307 | CK32: 10983.58776 | CL32: 14162.00418 | CM32: 22110.2251 | CN32: 26941.3272 | CO32: 38464.86197 | CP32: 1e-10 | CS32: 23 | CT32: 0.069 | CU32: 114.6327223 | CV32: 0.01228185244 | CW32: 0.3001077652 | CX32: 8.48261441 | CY32: 0.1041822185 | DA32: 0.6677546475 | DB32: 0.1160241523 | DC32: 0.848261441 | DD32: 10.41822185 | DF32: 96.59146094 | DG32: -10000000 | DH32: 52.59307012
BU33: 2.9 | BV33: 8.16809632 | BW33: 24.08227666 | BX33: 71.00259671 | BY33: 152.9129252 | BZ33: 277.2495805 | CA33: 450.8383868 | CB33: 680.057539 | CC33: 970.9365532 | CD33: 1329.222175 | CE33: 1760.425103 | CF33: 2269.854642 | CG33: 2862.645318 | CH33: 4318.096211 | CI33: 6165.062824 | CJ33: 8440.034718 | CK33: 11178.00264 | CL33: 14412.67859 | CM33: 22501.5869 | CN33: 27418.20187 | CO33: 39145.70885 | CP33: 1e-10 | CS33: 24 | CT33: 0.072 | CU33: 117.335497 | CV33: 0.01304502572 | CW33: 0.3071836128 | CX33: 8.694338836 | CY33: 0.1134178737 | DA33: 0.6844216752 | DB33: 0.1263095837 | DC33: 0.8694338836 | DD33: 11.34178737 | DF33: 96.59146094 | DG33: -10000000 | DH33: 52.59307012
BU34: 3 | BV34: =(1/$R$8)*(((PI()*((BV$3/2)^2))/(2*PI()*(BV$3/2)))^(2/3))*(($BU34*0.01)^(1/2))*(PI()*((BV$3/2)^2))*1000 -> 8.307732013 | BW34: 24.49396933 | BX34: 72.21640424 | BY34: 155.5270107 | BZ34: 281.9892329 | CA34: 458.5455842 | CB34: 691.6832964 | CC34: 987.5349616 | CD34: 1351.945568 | CE34: 1790.52002 | CF34: =(1/$R$8)*(((PI()*((CF$3/2)^2))/(2*PI()*(CF$3/2)))^(2/3))*(($BU34*0.01)^(1/2))*(PI()*((CF$3/2)^2))*1000 -> 2308.658387 | CG34: 2911.582971 | CH34: 4391.915169 | CI34: 6270.456148 | CJ34: 8584.319267 | CK34: 11369.09345 | CL34: 14659.06701 | CM34: 22886.25728 | CN34: 27886.92304 | CO34: 39814.91474 | CP34: 1e-10 | CS34: 25 | CT34: 0.075 | CU34: 120 | CV34: 0.01381915911 | CW34: 0.3141592654 | CX34: 8.900747084 | CY34: 0.1230008401 | DA34: 0.7006702113 | DB34: 0.1369818037 | DC34: 0.8900747084 | DD34: 12.30008401 | DF34: 96.59146094 | DG34: -10000000 | DH34: 52.59307012
BU35: 3.1 | BV35: 8.445059201 | BW35: 24.89885575 | BX35: 73.41014468 | BY35: 158.0978793 | BZ35: 286.6505277 | CA35: 466.1253636 | CB35: 703.1168527 | CC35: 1003.858959 | CD35: 1374.29329 | CE35: 1820.117397 | CF35: 2346.820615 | CG35: 2959.71157 | CH35: 4464.513726 | CI35: 6374.107073 | CJ35: 8726.218455 | CK35: 11557.02508 | CL35: 14901.38205 | CM35: 23264.56815 | CN35: 28347.89514 | CO35: 40473.05709 | CP35: 1e-10 | CS35: 26 | CT35: 0.078 | CU35: 122.629196 | CV35: 0.01460368665 | CW35: 0.3210424843 | CX35: 9.102037699 | CY35: 0.1329233065 | DA35: 0.7165158855 | DB35: 0.1480321131 | DC35: 0.9102037699 | DD35: 13.29233065 | DF35: 96.59146094 | DG35: -10000000 | DH35: 52.59307012
BU36: 3.2 | BV36: 8.580188729 | BW36: 25.29726274 | BX36: 74.58478158 | BY36: 160.627606 | BZ36: 291.2372274 | CA36: 473.583843 | CB36: 714.3674367 | CC36: 1019.921723 | CD36: 1396.283379 | CE36: 1849.241125 | CF36: 2384.372129 | CG36: 3007.069962 | CH36: 4535.950482 | CI36: 6476.099262 | CJ36: 8865.846816 | CK36: 11741.94923 | CL36: 15139.81931 | CM36: 23636.82488 | CN36: 28801.49027 | CO36: 41120.66712 | CP36: =IF($BU36<=$R$9,$R$19,0.0000000001) -> 1e-10 | CS36: 27 | CT36: 0.081 | CU36: 125.225785 | CV36: 0.01539806461 | CW36: 0.3278403385 | CX36: 9.29839083 | CY36: 0.1431772228 | DA36: 0.731972879 | DB36: 0.1594515469 | DC36: 0.929839083 | DD36: 14.31772228 | DF36: 96.59146094 | DG36: -10000000 | DH36: 52.59307012
BU37: 3.3 | BV37: 8.713222844 | BW37: 25.68949176 | BX37: 75.74120375 | BY37: 163.118105 | BZ37: 295.7528025 | CA37: 480.926666 | CB37: 725.4435613 | CC37: 1035.735406 | CD37: 1417.932474 | CE37: 1877.91324 | CF37: 2421.341344 | CG37: 3053.693982 | CH37: 4606.27949 | CI37: 6576.50989 | CJ37: 9003.310003 | CK37: 11924.00581 | CL37: 15374.55918 | CM37: 24003.30913 | CN37: 29248.05163 | CO37: 41758.23487 | CP37: 1e-10 | CS37: 28 | CT37: 0.084 | CU37: 127.7922377 | CV37: 0.01620176925 | CW37: 0.334559296 | CX37: 9.48997041 | CY37: 0.1537543108 | DA37: 0.7470540967 | DB37: 0.1712308858 | DC37: 0.948997041 | DD37: 15.37543108 | DF37: 96.59146094 | DG37: -10000000 | DH37: 52.59307012
BU38: 3.4 | BV38: 8.844256104 | BW38: 26.07582158 | BX38: 76.88023313 | BY38: 165.5711464 | BZ38: 300.2004627 | CA38: 488.1590518 | CB38: 736.3530993 | CC38: 1051.311248 | CD38: 1439.255963 | CE38: 1906.154121 | CF38: 2457.754535 | CG38: 3099.616769 | CH38: 4675.550738 | CI38: 6675.410325 | CJ38: 9138.705721 | CK38: 12103.32423 | CL38: 15605.76854 | CM38: 24364.28141 | CN38: 29687.89664 | CO38: 42386.21349 | CP38: 1e-10 | CS38: 29 | CT38: 0.087 | CU38: 130.330825 | CV38: 0.01701429487 | CW38: 0.341205302 | CX38: 9.676926007 | CY38: 0.1646460725 | DA38: 0.7617713128 | DB38: 0.1833606661 | DC38: 0.9676926007 | DD38: 16.46460725 | DF38: 96.59146094 | DG38: -10000000 | DH38: 52.59307012
BU39: 3.5 | BV39: 8.973376162 | BW39: 26.45651065 | BX39: 78.00263167 | BY39: 167.9883713 | BZ39: 304.583183 | CA39: 495.2858383 | CB39: 747.1033482 | CC39: 1066.659669 | CD39: 1460.268111 | CE39: 1933.982661 | CF39: 2493.636061 | CG39: 3144.869043 | CH39: 4743.810563 | CI39: 6772.866726 | CJ39: 9272.12454 | CK39: 12280.02444 | CL39: 15833.60203 | CM39: 24719.98316 | CN39: 30121.31951 | CO39: 43005.02306 | CP39: 1e-10 | CS39: 30 | CT39: 0.09 | CU39: 132.843643 | CV39: 0.01783515207 | CW39: 0.3477838442 | CX39: 9.859394395 | CY39: 0.1758437983 | DA39: 0.776135294 | DB39: 0.1958311881 | DC39: 0.9859394395 | DD39: 17.58437983 | DF39: 96.59146094 | DG39: -10000000 | DH39: 52.59307012
BU40: 3.6 | BV40: 9.100664451 | BW40: 26.83179905 | BX40: 79.10910725 | BY40: 170.3713041 | BZ40: 308.9037277 | CA40: 502.3115202 | CB40: 757.7010881 | CC40: 1081.79035 | CD40: 1480.982168 | CE40: 1961.416409 | CF40: 2529.008552 | CG40: 3189.479343 | CH40: 4811.102017 | CI40: 6868.940556 | CJ40: 9403.650607 | CK40: 12454.21788 | CL40: 16058.20335 | CM40: 25070.63874 | CN40: 30548.59361 | CO40: 43615.05386 | CP40: 1e-10 | CS40: 31 | CT40: 0.093 | CU40: 135.3326347 | CV40: 0.01866386622 | CW40: 0.3543000091 | CX40: 10.0375009 | CY40: 0.187338574 | DA40: 0.7901559062 | DB40: 0.2086325243 | DC40: 1.00375009 | DD40: 18.7338574 | DF40: 96.59146094 | DG40: -10000000 | DH40: 52.59307012
BU41: 3.7 | BV41: 9.226196787 | BW41: 27.20191031 | BX41: 80.20031889 | BY41: 172.7213642 | BZ41: 313.16467 | CA41: 509.2402823 | CB41: 768.1526313 | CC41: 1096.712301 | CD41: 1501.410473 | CE41: 1988.471706 | CF41: 2563.893077 | CG41: 3233.474239 | CH41: 4877.46518 | CI41: 6963.689039 | CJ41: 9533.36226 | CK41: 12626.00831 | CL41: 16279.70627 | CM41: 25416.45699 | CN41: 30969.97343 | CO41: 44216.66923 | CP41: 1e-10 | CS41: 32 | CT41: =R$10/100*CS41 -> 0.096 | CU41: =IF(CT41>($R$10/2),4*(ACOS((CT41/$R$10)^0.5))*360/(2*PI()),4*(ASIN((CT41/$R$10)^0.5))*360/(2*PI())) -> 137.799608 | CV41: =IF(CT41>($R$10/2),(($R$10^2)/8)*((PI()*2-(PI()*CU41/180)+(SIN(CU41*2*PI()/360)))),(($R$10)^2)/8*((PI()*CU41/180-SIN(CU41*2*PI()/360)))) -> 0.01949997609 | CW41: =IF(CT41>($R$10/2),(PI()*$R$10*(360-CU41)/360),(PI()*$R$10*CU41)/360) -> 0.36075853 | CX41: =(1/$R$8)*((CV41/CW41)^(2/3))*($R$9^(1/2)) -> 10.21136056 | CY41: 0.1991212868 | DA41: =CX41/CX$3 -> 0.8038422049 | DB41: =CY41/CY$3 -> 0.2217545261 | DC41: 1.021136056 | DD41: 19.91212868 | DF41: =DD$6 -> 96.59146094 | DG41: =IF(CS41>=P$66,N$67,-10000000) -> -10000000 | DH41: =IF(CS41<P$66,N$68,ERROR.TYPE(1)) -> 52.59307012
BU42: 3.8 | BV42: 9.350043896 | BW42: 27.56705296 | BX42: 81.27688141 | BY42: 175.0398755 | BZ42: 317.3684107 | CA42: 516.0760282 | CB42: 778.4638663 | CC42: 1111.43393 | CD42: 1521.564536 | CE42: 2015.163796 | CF42: 2598.309289 | CG42: 3276.87852 | CH42: 4942.937441 | CI42: 7057.165558 | CJ42: 9661.33258 | CK42: 12795.49252 | CL42: 16498.23559 | CM42: 25757.63275 | CN42: 31385.69637 | CO42: 44810.20812 | CP42: 1e-10 | CS42: 33 | CT42: 0.099 | CU42: 140.2462519 | CV42: 0.02034303258 | CW42: 0.3671638288 | CX42: 10.38107911 | CY42: 0.2111826305 | DA42: 0.8172025142 | DB42: 0.2351868297 | DC42: =DA42*$R$18 -> 1.038107911 | DD42: =DB42*$R$19 -> 21.11826305 | DF42: 96.59146094 | DG42: -10000000 | DH42: 52.59307012
BU43: 3.9 | BV43: 9.47227188 | BW43: 27.92742189 | BX43: 82.3393694 | BY43: 177.3280755 | BZ43: 321.5171935 | CA43: 522.8224064 | CB43: 788.6402965 | CC43: 1125.963095 | CD43: 1541.455113 | CE43: 2041.506925 | CF43: 2632.275558 | CG43: 3319.715352 | CH43: 5007.553745 | CI43: 7149.420004 | CJ43: 9787.629869 | CK43: 12962.76096 | CL43: 16713.90796 | CM43: 26094.34812 | CN43: 31795.98433 | CO43: 45395.98734 | CP43: 1e-10 | CS43: 34 | CT43: 0.102 | CU43: 142.6741502 | CV43: 0.02119259758 | CW43: 0.3735200519 | CX43: 10.54675388 | CY43: 0.2235131107 | DA43: 0.830244495 | DB43: 0.2489188612 | DC43: 1.054675388 | DD43: 22.35131107 | DF43: 96.59146094 | DG43: -10000000 | DH43: 52.59307012
BU44: 4 | BV44: =(1/$R$8)*(((PI()*((BV$3/2)^2))/(2*PI()*(BV$3/2)))^(2/3))*(($BU44*0.01)^(1/2))*(PI()*((BV$3/2)^2))*1000 -> 9.592942628 | BW44: 28.28319957 | BX44: 83.38832085 | BY44: 179.587123 | BZ44: 325.613119 | CA44: 529.482833 | CB44: 798.6870747 | CC44: 1140.307152 | CD44: 1561.092275 | CE44: 2067.514431 | CF44: =(1/$R$8)*(((PI()*((CF$3/2)^2))/(2*PI()*(CF$3/2)))^(2/3))*(($BU44*0.01)^(1/2))*(PI()*((CF$3/2)^2))*1000 -> 2665.809082 | CG44: 3362.006424 | CH44: 5071.34681 | CI44: 7240.499089 | CJ44: 9912.318079 | CK44: 13127.89833 | CL44: 16926.83257 | CM44: 26426.7736 | CN44: 32201.04505 | CO44: 45974.30349 | CP44: 1e-10 | CS44: 35 | CT44: 0.105 | CU44: 145.0847938 | CV44: 0.02204824303 | CW44: 0.3798311018 | CX44: 10.7084745 | CY44: 0.2361030483 | DA44: 0.8429752045 | DB44: 0.2629398415 | DC44: 1.07084745 | DD44: 23.61030483 | DF44: 96.59146094 | DG44: -10000000 | DH44: 52.59307012
BU45: 4.1 | BV45: 9.712114187 | BW45: 28.63455713 | BX45: 84.42424033 | BY45: 181.8181045 | BZ45: 329.6581576 | CA45: 536.0605117 | CB45: 808.6090337 | CC45: 1154.473001 | CD45: 1580.485469 | CE45: 2093.198825 | CF45: 2698.925993 | CG45: 3403.772081 | CH45: 5134.347323 | CI45: 7330.446626 | CJ45: 10035.45719 | CK45: 13290.98406 | CL45: 17137.11184 | CM45: 26755.06909 | CN45: 32601.07337 | CO45: 46545.43474 | CP45: 1e-10 | CS45: 36 | CT45: 0.108 | CU45: 147.4795906 | CV45: 0.0229095499 | CW45: 0.3861006653 | CX45: 10.86632363 | CY45: 0.2489425834 | DA45: 0.8554011483 | DB45: 0.27723879 | DC45: 1.086632363 | DD45: 24.89425834 | DF45: 96.59146094 | DG45: -10000000 | DH45: 52.59307012
BU46: 4.2 | BV46: 9.829841081 | BW46: 28.98165535 | BX46: 85.44760182 | BY46: 184.0220407 | BZ46: 333.65416 | CA46: 542.5584521 | CB46: 818.4107132 | CC46: 1168.467124 | CD46: 1599.643568 | CE46: 2118.571858 | CF46: 2731.641442 | CG46: 3445.03143 | CH46: 5196.584108 | CI46: 7419.303769 | CJ46: 10157.10353 | CK46: 13452.09278 | CL46: 17344.84199 | CM46: 27079.3848 | CN46: 32996.25232 | CO46: 47109.64243 | CP46: 1e-10 | CS46: 37 | CT46: 0.111 | CU46: 149.8598757 | CV46: 0.02377610738 | CW46: 0.3923322372 | CX46: 11.02037747 | CY46: 0.2620216781 | DA46: 0.8675283252 | DB46: 0.2918045278 | DC46: 1.102037747 | DD46: 26.20216781 | DF46: 96.59146094 | DG46: -10000000 | DH46: 52.59307012
BU47: 4.3 | BV47: 9.946174611 | BW47: 29.32464546 | BX47: 86.45885125 | BY47: 186.1998922 | BZ47: 337.6028673 | CA47: 548.9794857 | CB47: 828.0963842 | CC47: 1182.295619 | CD47: 1618.574921 | CE47: 2143.644587 | CF47: 2763.969685 | CG47: 3485.802452 | CH47: 5258.084286 | CI47: 7507.109237 | CJ47: 10277.31013 | CK47: 13611.29469 | CL47: 17550.11354 | CM47: 27399.86205 | CN47: 33386.75411 | CO47: 47667.1724 | CP47: 1e-10 | CQ47: =IF($BU47<=$R$9,$R$19,"") ->  | CS47: 38 | CT47: 0.114 | CU47: 152.2269193 | CV47: 0.02464751211 | CW47: 0.3985291427 | CX47: 11.1707063 | CY47: 0.2753301188 | DA47: 0.8793622681 | DB47: 0.3066256803 | DC47: 1.11707063 | DD47: 27.53301188 | DF47: 96.59146094 | DG47: -10000000 | DH47: 52.59307012
BU48: 4.4 | BV48: 10.06116311 | BW48: 29.66366996 | BX48: 87.45840874 | BY48: 188.3525636 | BZ48: 341.5059203 | CA48: 555.3262802 | CB48: 837.6700709 | CC48: 1195.96423 | CD48: 1637.287391 | CE48: 2168.427429 | CF48: 2795.924153 | CG48: 3526.102085 | CH48: 5318.873407 | CI48: 7593.89951 | CJ48: 10396.12691 | CK48: 13768.65593 | CL48: 17753.01177 | CM48: 27716.63398 | CN48: 33772.74096 | CO48: 48218.25628 | CP48: 1e-10 | CS48: 39 | CT48: 0.117 | CU48: 154.581934 | CV48: 0.0255233674 | CW48: 0.4046945569 | CX48: 11.31737493 | CY48: 0.2888575182 | DA48: 0.8909080784 | DB48: 0.3216906796 | DC48: 1.131737493 | DD48: 28.88575182 | DF48: 96.59146094 | DG48: -10000000 | DH48: 52.59307012
BU49: 4.5 | BV49: 10.17485218 | BW49: 29.99886331 | BX49: 88.44667072 | BY49: 190.4809087 | BZ49: 345.3648668 | CA49: 561.6013526 | CB49: 847.1355698 | CC49: 1209.47838 | CD49: 1655.788401 | CE49: 2192.930211 | CF49: 2827.517519 | CG49: 3565.946311 | CH49: 5378.975579 | CI49: 7679.709008 | CJ49: 10513.601 | CK49: 13924.2389 | CL49: 17953.61714 | CM49: 28029.82623 | CN49: 34154.36597 | CO49: 48763.11263 | CP49: 1e-10 | CS49: 40 | CT49: 0.12 | CU49: 156.9260819 | CV49: 0.0264032826 | CW49: 0.4108315218 | CX49: 11.46044307 | CY49: 0.3025933171 | DA49: 0.9021704576 | DB49: 0.3369877663 | DC49: 1.146044307 | DD49: 30.25933171 | DF49: 96.59146094 | DG49: -10000000 | DH49: 52.59307012
BU50: 4.6 | BV50: 10.2872849 | BW50: 30.33035253 | BX50: 89.42401167 | BY50: 192.585734 | BZ50: 349.181169 | CA50: 567.8070808 | CB50: 856.496468 | CC50: 1222.843187 | CD50: 1674.084961 | CE50: 2217.16222 | CF50: 2858.761755 | CG50: 3605.350229 | CH50: 5438.413578 | CI50: 7764.570247 | CJ50: 10629.77691 | CK50: 14078.10256 | CL50: 18152.00567 | CM50: 28339.55747 | CN50: 34531.77374 | CO50: 49301.94791 | CP50: 1e-10 | CS50: 41 | CT50: 0.123 | CU50: 159.2604804 | CV50: 0.02728687243 | CW50: 0.4169429627 | CX50: 11.59996572 | CY50: 0.3165267849 | DA50: 0.9131537341 | DB50: 0.3525049899 | DC50: 1.159996572 | DD50: 31.65267849 | DF50: 96.59146094 | DG50: -10000000 | DH50: 52.59307012
BU51: 4.7 | BV51: 10.39850202 | BW51: 30.65825776 | BX51: 90.39078584 | BY51: 194.6678025 | BZ51: 352.9562103 | CA51: 573.9457141 | CB51: 865.7561584 | CC51: 1236.063498 | CD51: 1692.183702 | CE51: 2241.132238 | CF51: 2889.668186 | CG51: 3644.328121 | CH51: 5497.208947 | CI51: 7848.513987 | CJ51: 10744.69676 | CK51: 14230.30269 | CL51: 18348.24927 | CM51: 28645.93996 | CN51: 34905.10106 | CO51: 49834.95744 | CP51: 1e-10 | CS51: 42 | CT51: 0.126 | CU51: 161.5862076 | CV51: 0.02817375641 | CW51: 0.4230317022 | CX51: 11.73599344 | CY51: 0.3306470204 | DA51: 0.9238618878 | DB51: 0.3682302104 | DC51: 1.173599344 | DD51: 33.06470204 | DF51: 96.59146094 | DG51: -10000000 | DH51: 52.59307012
BU52: 4.8 | BV52: 10.50854214 | BW52: 30.9826928 | BX52: 91.34732873 | BY52: 196.7278366 | BZ52: 356.6913006 | CA52: 580.0193829 | CB52: 874.9178544 | CC52: 1249.143899 | CD52: 1710.090907 | CE52: 2264.848583 | CF52: 2920.247537 | CG52: 3682.893514 | CH52: 5555.38209 | CI52: 7931.569358 | CJ52: 10858.40042 | CK52: 14380.8921 | CL52: 18542.41605 | CM52: 28949.08005 | CN52: 35274.47749 | CO52: 50362.32617 | CP52: 1e-10 | CS52: 43 | CT52: 0.129 | CU52: 163.9043075 | CV52: 0.02906355829 | CW52: 0.4291004736 | CX52: 11.86857262 | CY52: 0.344942952 | DA52: 0.9342985713 | DB52: 0.3841510976 | DC52: 1.186857262 | DD52: 34.4942952 | DF52: 96.59146094 | DG52: -10000000 | DH52: 52.59307012
B53: Your Logo / Company Details Here | G53: Project: | M53: =IF(M2="","",M2) ->  | AF53: By: | BU53: 4.9 | BV53: 10.61744186 | BW53: 31.30376555 | BX53: 92.29395845 | BY53: 198.7665215 | BZ53: 360.3876823 | CA53: 586.030107 | CB53: 883.9846028 | CC53: 1262.088741 | CD53: 1727.812529 | CE53: 2288.319144 | CF53: 2950.509978 | CG53: 3721.059233 | CH53: 5612.952354 | CI53: 8013.763982 | CJ53: 10970.92571 | CK53: 14529.92086 | CL53: 18734.57057 | CM53: 29249.07853 | CN53: 35640.02588 | CO53: 50884.2295 | CP53: 1e-10 | CS53: 44 | CT53: 0.132 | CU53: 166.2157948 | CV53: 0.02995590549 | CW53: 0.4351519333 | CX53: 11.99774574 | CY53: 0.3594033374 | DA53: 0.9444671287 | DB53: 0.4002551313 | DC53: 1.199774574 | DD53: 35.94033374 | DF53: 96.59146094 | DG53: -10000000 | DH53: 52.59307012
G54: Calculation: | M54: =IF(M3="","",M3) -> Manning Formula - Flow in Circular Pipe | BU54: 5 | BV54: =(1/$R$8)*(((PI()*((BV$3/2)^2))/(2*PI()*(BV$3/2)))^(2/3))*(($BU54*0.01)^(1/2))*(PI()*((BV$3/2)^2))*1000 -> 10.72523591 | BW54: 31.62157843 | BX54: 93.23097698 | BY54: 200.7845074 | BZ54: 364.0465343 | CA54: 591.9798037 | CB54: 892.9592959 | CC54: 1274.902153 | CD54: 1745.354223 | CE54: 2311.551406 | CF54: =(1/$R$8)*(((PI()*((CF$3/2)^2))/(2*PI()*(CF$3/2)))^(2/3))*(($BU54*0.01)^(1/2))*(PI()*((CF$3/2)^2))*1000 -> 2980.465162 | CG54: 3758.837453 | CH54: 5669.938103 | CI54: 8095.124078 | CJ54: 11082.30852 | CK54: 14677.43653 | CL54: 18924.77413 | CM54: 29546.0311 | CN54: 36001.86283 | CO54: 51400.83391 | CP54: 1e-10 | CS54: 45 | CT54: 0.135 | CU54: 168.521659 | CV54: 0.03085042864 | CW54: 0.4411886717 | CX54: 12.12355157 | CY54: 0.3740167627 | DA54: 0.9543706123 | DB54: 0.4165296002 | DC54: 1.212355157 | DD54: 37.40167627 | DF54: 96.59146094 | DG54: -10000000 | DH54: 52.59307012
AF55: Approved: | BU55: 5.1 | BV55: 10.8319573 | BW55: 31.93622875 | BX55: 94.15867124 | BY55: 202.7824124 | BZ55: 367.6689771 | CA55: 597.8702951 | CB55: 901.8446818 | CC55: 1287.588059 | CD55: 1762.72136 | CE55: 2334.552484 | CF55: 3010.122262 | CG55: 3796.239742 | CH55: 5726.356787 | CI55: 8175.67456 | CJ55: 11192.58296 | CK55: 14823.48427 | CL55: 19113.08498 | CM55: 29840.0287 | CN55: 36360.09915 | CO55: 51912.29759 | CP55: 1e-10 | CS55: 46 | CT55: 0.138 | CU55: 170.8228685 | CV55: 0.03174676105 | CW55: 0.447213224 | CX55: 12.24602538 | CY55: 0.3887716414 | DA55: 0.9640117967 | DB55: 0.4329616009 | DC55: 1.224602538 | DD55: 38.87716414 | DF55: 96.59146094 | DG55: -10000000 | DH55: 52.59307012
G56: Sheet Number: | M56: 2 | T56: Date: | BU56: 5.2 | BV56: 10.93763744 | BW56: 32.24780909 | BX56: 95.07731418 | BY56: 204.7608243 | BZ56: 371.2560764 | CA56: 603.7033142 | CB56: 910.6433749 | CC56: 1300.150192 | CD56: 1779.919048 | CE56: 2357.329145 | CF56: 3039.490004 | CG56: 3833.277104 | CH56: 5782.225005 | CI56: 8255.439127 | CJ56: 11301.78148 | CK56: 14968.10706 | CL56: 19299.55852 | CM56: 30131.15782 | CN56: 36714.84022 | CO56: 52418.77102 | CP56: 1e-10 | CS56: 47 | CT56: 0.141 | CU56: 173.1203745 | CV56: 0.03264453823 | CW56: 0.4532280805 | CX56: 12.36519903 | CY56: 0.4036562124 | DA56: 0.9733931923 | DB56: 0.4495380356 | DC56: 1.236519903 | DD56: 40.36562124 | DF56: 96.59146094 | DG56: -10000000 | DH56: 52.59307012
BU57: 5.3 | BV57: 11.04230621 | BW57: 32.5564076 | BX57: 95.98716567 | BY57: 206.7203027 | BZ57: 374.8088471 | CA57: 609.480511 | CB57: 919.3578641 | CC57: 1312.592104 | CD57: 1796.952155 | CE57: 2379.887833 | CF57: 3068.576695 | CG57: 3869.960017 | CH57: 5837.558563 | CI57: 8334.440345 | CJ57: 11409.93496 | CK57: 15111.3458 | CL57: 19484.2475 | CM57: 30419.50083 | CN57: 37066.18641 | CO57: 52920.39748 | CP57: 1e-10 | CS57: 48 | CT57: 0.144 | CU57: 175.4151144 | CV57: 0.03354339747 | CW57: 0.4592356957 | CX57: 12.4811012 | CY57: 0.4186585385 | DA57: 0.9825170557 | DB57: 0.46624561 | DC57: 1.24811012 | DD57: 41.86585385 | DF57: 96.59146094 | DG57: -10000000 | DH57: 52.59307012
H58: Results When Flowing Partially Full | BU58: 5.4 | BV58: 11.14599211 | BW58: 32.86210827 | BX58: 96.88847338 | BY58: 208.661381 | BZ58: 378.3282562 | CA58: 615.2034583 | CB58: 927.9905217 | CC58: 1324.917183 | CD58: 1813.825315 | CE58: 2402.234688 | CF58: 3097.390254 | CG58: 3906.298467 | CH58: 5892.372522 | CI58: 8412.699718 | CJ58: 11517.07285 | CK58: 15253.23948 | CL58: 19667.20219 | CM58: 30705.13621 | CN58: 37414.23336 | CO58: 53417.31353 | CP58: 1e-10 | CS58: 49 | CT58: 0.147 | CU58: 177.708016 | CV58: 0.03444297736 | CW58: 0.465238498 | CX58: 12.59375746 | CY58: 0.4337665031 | DA58: 0.9913853994 | DB58: 0.4830708303 | DC58: 1.259375746 | DD58: 43.37665031 | DF58: 96.59146094 | DG58: -10000000 | DH58: 52.59307012
BU59: 5.5 | BV59: 11.24872232 | BW59: 33.16499125 | BX59: 97.78147358 | BY59: 210.584568 | BZ59: 381.8152263 | CA59: 620.8736561 | CB59: 936.5436106 | CC59: 1337.128659 | CD59: 1830.542952 | CE59: 2424.375567 | CF59: 3125.938233 | CG59: 3942.301979 | CH59: 5946.681251 | CI59: 8490.23776 | CJ59: 11623.22323 | CK59: 15393.8253 | CL59: 19848.47056 | CM59: 30988.13884 | CN59: 37759.07229 | CO59: 53909.6494 | CP59: 1e-10 | CS59: 50 | CT59: 0.15 | CU59: 180 | CV59: 0.03534291735 | CW59: 0.471238898 | CX59: 12.70319037 | CY59: 0.4489678075 | DA59: 1 | DB59: 0.5 | DC59: 1.270319037 | DD59: 44.89678075 | DF59: 96.59146094 | DG59: -10000000 | DH59: 52.59307012
H60: Max Velocity at 81.4% Height | BU60: 5.6 | BV60: 11.35052279 | BW60: 33.46513303 | BX60: 98.66639183 | BY60: 212.4903495 | BZ60: 385.2706381 | CA60: 626.4925367 | CB60: 945.0192911 | CC60: 1349.229617 | CD60: 1847.10929 | CE60: 2446.316065 | CF60: 3154.227844 | CG60: 3977.979647 | CH60: 6000.498467 | CI60: 8567.074057 | CJ60: 11728.41292 | CK60: 15533.13878 | CL60: 20028.09839 | CM60: 31268.58021 | CN60: 38100.79032 | CO60: 54397.52948 | CP60: 1e-10 | CS60: 51 | CT60: 0.153 | CU60: 177.708016 | CV60: 0.03624285735 | CW60: 0.4772392981 | CX60: 12.80941959 | CY60: 0.464249967 | DA60: 1.008362405 | DB60: 0.5170192153 | DC60: 1.280941959 | DD60: 46.4249967 | DF60: 96.59146094 | DG60: -10000000 | DH60: 52.59307012
H61: Vmax | N61: =DC5 -> 1.4481975 | Q61: m/s | BU61: 5.7 | BV61: 11.45141831 | BW61: 33.76260673 | BX61: 99.54344367 | BY61: 214.3791898 | BZ61: 388.6953334 | CA61: 632.0614688 | CB61: 953.4196278 | CC61: 1361.223006 | CD61: 1863.528362 | CE61: 2468.061524 | CF61: 3182.265976 | CG61: 4013.340162 | CH61: 6053.837281 | CI61: 8643.227324 | CJ61: 11832.66753 | CK61: 15671.21384 | CL61: 20206.12943 | CM61: 31546.52861 | CN61: 38439.47067 | CO61: 54881.07258 | CP61: 1e-10 | CS61: 52 | CT61: 0.156 | CU61: 175.4151144 | CV61: 0.03714243724 | CW61: 0.4832421003 | CX61: 12.91246193 | CY61: 0.479600307 | DA61: 1.016473937 | DB61: 0.5341143608 | DC61: 1.291246193 | DD61: 47.9600307 | DF61: 96.59146094 | DG61: -10000000 | DH61: 52.59307012
BU62: 5.8 | BV62: 11.55143259 | BW62: 34.05748226 | BX62: 100.4128352 | BY62: 216.2515327 | BZ62: 392.0901169 | CA62: 637.5817611 | CB62: 961.7465949 | CC62: 1373.111642 | CD62: 1879.804028 | CE62: 2489.617056 | CF62: 3210.059219 | CG62: 4048.391833 | CH62: 6106.710226 | CI62: 8718.715458 | CJ62: 11936.01156 | CK62: 15808.08294 | CL62: 20382.60553 | CM62: 31822.04937 | CN62: 38775.19295 | CO62: 55360.39236 | CP62: 1e-10 | CS62: 53 | CT62: 0.159 | CU62: 173.1203745 | CV62: 0.03804129648 | CW62: 0.4892497156 | CX62: 13.01233142 | CY62: 0.4950059575 | DA62: 1.024335701 | DB62: 0.5512711037 | DC62: 1.301233142 | DD62: 49.50059575 | DF62: 96.59146094 | DG62: -10000000 | DH62: 52.59307012
H63: Max Flow at 93.8% Height | BU63: 5.9 | BV63: 11.65058834 | BW63: 34.34982652 | BX63: 101.2747638 | BY63: 218.107803 | BZ63: 395.455759 | CA63: 643.0546663 | CB63: 970.0020819 | CC63: 1384.898224 | CD63: 1895.939981 | CE63: 2510.987552 | CF63: 3237.613881 | CG63: 4083.142615 | CH63: 6159.129301 | CI63: 8793.55559 | CJ63: 12038.46848 | CK63: 15943.77712 | CL63: 20557.56672 | CM63: 32095.20502 | CN63: 39108.03332 | CO63: 55835.59758 | CP63: 1e-10 | CS63: 54 | CT63: 0.162 | CU63: 170.8228685 | CV63: 0.03893907366 | CW63: 0.495264572 | CX63: 13.10903933 | CY63: 0.510453848 | DA63: 1.031948585 | DB63: 0.5684748878 | DC63: 1.310903933 | DD63: 51.0453848 | DF63: 96.59146094 | DG63: -10000000 | DH63: 52.59307012
H64: Qmax | N64: =DD6 -> 96.59146094 | Q64: l/s | AF64: = | AG64: =N64/1000 -> 0.09659146094 | AI64: m³/s | BU64: 6 | BV64: =(1/$R$8)*(((PI()*((BV$3/2)^2))/(2*PI()*(BV$3/2)))^(2/3))*(($BU64*0.01)^(1/2))*(PI()*((BV$3/2)^2))*1000 -> 11.74890729 | BW64: 34.63970362 | BX64: 102.1294183 | BY64: 219.9484079 | BZ64: 398.7929976 | CA64: 648.4813842 | CB64: 978.1878986 | CC64: 1396.585336 | CD64: 1911.939758 | CE64: 2532.177696 | CF64: =(1/$R$8)*(((PI()*((CF$3/2)^2))/(2*PI()*(CF$3/2)))^(2/3))*(($BU64*0.01)^(1/2))*(PI()*((CF$3/2)^2))*1000 -> 3264.936002 | CG64: 4117.600126 | CH64: 6211.105997 | CI64: 8867.764126 | CJ64: 12140.06073 | CK64: 16078.32615 | CL64: 20731.05138 | CM64: 32366.05543 | CN64: 39438.06477 | CO64: 56306.79241 | CP64: 1e-10 | CS64: 55 | CT64: 0.165 | CU64: 168.521659 | CV64: 0.03983540606 | CW64: 0.5012891244 | CX64: 13.2025942 | CY64: 0.5259307012 | DA64: 1.03931326 | DB64: 0.5857109267 | DC64: 1.32025942 | DD64: 52.59307012 | DF64: 96.59146094 | DG64: 1.32025942
BU65: 6.1 | BV65: 11.84641026 | BW65: 34.92717497 | BX65: 102.9769799 | BY65: 221.7737371 | BZ65: 402.1025398 | CA65: 653.8630647 | CB65: 986.3057797 | CC65: 1408.175455 | CD65: 1927.80675 | CE65: 2553.191979 | CF65: 3292.031371 | CG65: 4151.771667 | CH65: 6262.651329 | CI65: 8941.356792 | CJ65: 12240.80985 | CK65: 16211.75853 | CL65: 20903.09625 | CM65: 32634.65801 | CN65: 39765.35723 | CO65: 56774.07671 | CP65: 1e-10 | CS65: 56 | CT65: 0.168 | CU65: 166.2157948 | CV65: 0.04072992921 | CW65: 0.5073258628 | CX65: 13.29300188 | CY65: 0.5414230256 | DA65: 1.046430187 | DB65: 0.6029641954 | DC65: 1.329300188 | DD65: 54.14230256 | DF65: 96.59146094 | DG65: 1.32025942
H66: User Defined Height | P66: 55 | R66: % | AF66: = | AG66: =P66%*R10 -> 0.165 | AJ66: m | BU66: 6.2 | BV66: 11.94311726 | BW66: 35.21229949 | BX66: 103.8176222 | BY66: 223.584165 | BZ66: 405.385064 | CA66: 659.2008109 | CB66: 994.357389 | CC66: 1419.670955 | CD66: 1943.544209 | CE66: 2574.034708 | CF66: 3318.905542 | CG66: 4185.664243 | CH66: 6313.775861 | CI66: 9014.34867 | CJ66: 12340.73649 | CK66: 16344.10161 | CL66: 21073.7366 | CM66: 32901.0678 | CN66: 40089.97778 | CO66: 57237.54625 | CP66: 1e-10 | CS66: 57 | CT66: 0.171 | CU66: 163.9043075 | CV66: 0.04162227642 | CW66: 0.5133773225 | CX66: 13.38026547 | CY66: 0.5569171079 | DA66: 1.05329961 | DB66: 0.6202194217 | DC66: 1.338026547 | DD66: 55.69171079 | DF66: 96.59146094 | DG66: 1.32025942
H67: Velocity (v) | N67: =DC7 -> 1.32025942 | Q67: m/s | BU67: 6.3 | BV67: 12.03904745 | BW67: 35.49513375 | BX67: 104.6515121 | BY67: 225.3800506 | BZ67: 408.6412212 | CA67: 664.4956816 | CB67: 1002.344324 | CC67: 1431.074118 | CD67: 1959.155257 | CE67: 2594.710018 | CF67: 3345.563846 | CG67: 4219.284576 | CH67: 6364.489735 | CI67: 9086.75424 | CJ67: 12439.86046 | CK67: 16475.38165 | CL67: 21243.00628 | CM67: 33165.33765 | CN67: 40411.9908 | CO67: 57697.29296 | CP67: 1e-10 | CS67: 58 | CT67: 0.174 | CU67: 161.5862076 | CV67: 0.0425120783 | CW67: 0.5194460939 | CX67: 13.46438534 | CY67: 0.5723990039 | DA67: 1.059921559 | DB67: 0.6374610766 | DC67: 1.346438534 | DD67: 57.23990039 | DF67: 96.59146094 | DG67: 1.32025942
H68: Flow (Q) | N68: =DD7 -> 52.59307012 | Q68: l/s | AF68: = | AG68: =N68/1000 -> 0.05259307012 | AI68: m³/s | BU68: 6.4 | BV68: 12.13421927 | BW68: 35.77573206 | BX68: 105.4788097 | BY68: 227.1617388 | BZ68: 411.8716369 | CA68: 669.7486937 | CB68: 1010.268118 | CC68: 1442.387133 | CD68: 1974.642891 | CE68: 2615.221879 | CF68: 3372.011403 | CG68: 4252.639124 | CH68: 6414.80269 | CI68: 9158.587408 | CJ68: 12538.20081 | CK68: 16605.62384 | CL68: 21410.93779 | CM68: 33427.51831 | CN68: 40731.45815 | CO68: 58153.40514 | CP68: =IF($BU68<=$R$9,$R$19,0.0000000001) -> 1e-10 | CS68: 59 | CT68: 0.177 | CU68: 159.2604804 | CV68: 0.04339896228 | CW68: 0.5255348334 | CX68: 13.5453591 | CY68: 0.5878545285 | DA68: 1.066295844 | DB68: 0.6546733626 | DC68: 1.35453591 | DD68: 58.78545285 | DF68: 96.59146094 | DG68: 1.32025942
BU69: 6.5 | BV69: 12.22865041 | BW69: 36.05414663 | BX69: 106.2996688 | BY69: 228.9295611 | BZ69: 415.076912 | CA69: 674.9608244 | CB69: 1018.130245 | CC69: 1453.612105 | CD69: 1990.009993 | CE69: 2635.574107 | CF69: 3398.253133 | CG69: 4285.734091 | CH69: 6464.724086 | CI69: 9229.861536 | CJ69: 12635.77583 | CK69: 16734.85244 | CL69: 21577.56239 | CM69: 33687.65857 | CN69: 41048.43926 | CO69: 58605.96765 | CP69: 1e-10 | CS69: 60 | CT69: 0.18 | CU69: 156.9260819 | CV69: 0.04428255211 | CW69: 0.5316462743 | CX69: 13.6231815 | CY69: 0.6032692447 | DA69: 1.072422053 | DB69: 0.6718402017 | DC69: 1.36231815 | DD69: 60.32692447 | DF69: 96.59146094 | DG69: 1.32025942
BU70: 6.6 | BV70: 12.32235792 | BW70: 36.33042765 | BX70: 107.1142376 | BY70: 230.6838363 | BZ70: 418.2576245 | CA70: 680.1330136 | CB70: 1025.932123 | CC70: 1464.751058 | CD70: 2005.259335 | CE70: 2655.770372 | CF70: 3424.293767 | CG70: 4318.575445 | CH70: 6514.262926 | CI70: 9300.589479 | CJ70: 12732.60311 | CK70: 16863.09073 | CL70: 21742.91011 | CM70: 33945.80532 | CN70: 41362.99129 | CO70: 59055.06209 | CP70: 1e-10 | CS70: 61 | CT70: 0.183 | CU70: 154.581934 | CV70: 0.0451624673 | CW70: 0.5377832392 | CX70: 13.69784442 | CY70: 0.618628451 | DA70: 1.078299547 | DB70: 0.6889452213 | DC70: 1.369784442 | DD70: 61.8628451 | DF70: 96.59146094 | DG70: 1.32025942
BU71: 6.7 | BV71: 12.41535816 | BW71: 36.60462345 | BX71: 107.9226584 | BY71: 232.4248711 | BZ71: 421.4143306 | CA71: 685.2661658 | CB71: 1033.675117 | CC71: 1475.805939 | CD71: 2020.393583 | CE71: 2675.814207 | CF71: 3450.137861 | CG71: 4351.16893 | CH71: 6563.427872 | CI71: 9370.783603 | CJ71: 12828.69959 | CK71: 16990.36115 | CL71: 21907.00988 | CM71: 34202.00371 | CN71: 41675.16924 | CO71: 59500.767 | CP71: 1e-10 | CS71: 62 | CT71: 0.186 | CU71: 152.2269193 | CV71: 0.0460383226 | CW71: 0.5439486534 | CX71: 13.76933675 | CY71: 0.6339171675 | DA71: 1.083927451 | DB71: 0.7059717388 | DC71: 1.376933675 | DD71: 63.39171675 | DF71: 96.59146094 | DG71: 1.32025942
BU72: 6.8 | BV72: 12.50766693 | BW72: 36.87678053 | BX72: 108.7250684 | BY72: 234.1529608 | BZ72: 424.5475658 | CA72: 690.3611516 | CB72: 1041.36054 | CC72: 1486.778625 | CD72: 2035.415303 | CE72: 2695.70901 | CF72: 3475.789796 | CG72: 4383.520073 | CH72: 6612.227265 | CI72: 9440.455816 | CJ72: 12924.08157 | CK72: 17116.68527 | CL72: 22069.88952 | CM72: 34456.2972 | CN72: 41985.02606 | CO72: 59943.15797 | CP72: 1e-10 | CS72: 63 | CT72: 0.189 | CU72: 149.8598757 | CV72: 0.04690972732 | CW72: 0.5501455589 | CX72: 13.83764429 | CY72: 0.6491201203 | DA72: 1.089304646 | DB72: 0.7229027444 | DC72: 1.383764429 | DD72: 64.91201203 | DF72: 96.59146094 | DG72: 1.32025942
BU73: 6.9 | BV73: 12.59929942 | BW73: 37.14694371 | BX73: 109.5215997 | BY73: 235.8683901 | BZ73: 427.6578459 | CA73: 695.4188101 | CB73: 1048.989657 | CC73: 1497.670922 | CD73: 2050.32697 | CE73: 2715.458058 | CF73: 3501.253798 | CG73: 4415.634203 | CH73: 6660.669138 | CI73: 9509.617589 | CJ73: 13018.76475 | CK73: 17242.08391 | CL73: 22231.57585 | CM73: 34708.72766 | CN73: 42292.61278 | CO73: 60382.30786 | CP73: 1e-10 | CS73: 64 | CT73: =R$10/100*CS73 -> 0.192 | CU73: =IF(CT73>($R$10/2),4*(ACOS((CT73/$R$10)^0.5))*360/(2*PI()),4*(ASIN((CT73/$R$10)^0.5))*360/(2*PI())) -> 147.4795906 | CV73: =IF(CT73>($R$10/2),(($R$10^2)/8)*((PI()*2-(PI()*CU73/180)+(SIN(CU73*2*PI()/360)))),(($R$10)^2)/8*((PI()*CU73/180-SIN(CU73*2*PI()/360)))) -> 0.04777628481 | CW73: =IF(CT73>($R$10/2),(PI()*$R$10*(360-CU73)/360),(PI()*$R$10*CU73)/360) -> 0.5563771308 | CX73: =(1/$R$8)*((CV73/CW73)^(2/3))*($R$9^(1/2)) -> 13.90274959 | CY73: 0.6642217242 | DA73: =CX73/CX$3 -> 1.09442976 | DB73: =CY73/CY$3 -> 0.7397208811 | DC73: 1.390274959 | DD73: 66.42217242 | DF73: =DD$6 -> 96.59146094 | DG73: =IF(CS73>=P$66,N$67,-10000000) -> 1.32025942 | DH73: =IF(CS73<P$66,N$68,ERROR.TYPE(1)) -> 
BU74: 7 | BV74: =(1/$R$8)*(((PI()*((BV$3/2)^2))/(2*PI()*(BV$3/2)))^(2/3))*(($BU74*0.01)^(1/2))*(PI()*((BV$3/2)^2))*1000 -> 12.69027027 | BW74: 37.41515617 | BX74: 110.3123796 | BY74: 237.5714331 | BZ74: 430.7456683 | CA74: 700.4399498 | CB74: 1056.563687 | CC74: 1508.484571 | CD74: 2065.130967 | CE74: 2735.064508 | CF74: =(1/$R$8)*(((PI()*((CF$3/2)^2))/(2*PI()*(CF$3/2)))^(2/3))*(($BU74*0.01)^(1/2))*(PI()*((CF$3/2)^2))*1000 -> 3526.533937 | CG74: 4447.516452 | CH74: 6708.761236 | CI74: 9578.279979 | CJ74: 13112.76428 | CK74: 17366.57711 | CL74: 22392.09473 | CM74: 34959.33545 | CN74: 42597.97857 | CO74: 60818.28686 | CP74: 1e-10 | CS74: 65 | CT74: 0.195 | CU74: 145.0847938 | CV74: 0.04863759168 | CW74: 0.5626466942 | CX74: 13.96463187 | CY74: 0.6792060629 | DA74: 1.099301157 | DB74: 0.7564084235 | DC74: =DA74*$R$18 -> 1.396463187 | DD74: =DB74*$R$19 -> 67.92060629 | DF74: 96.59146094 | DG74: 1.32025942
BU75: 7.1 | BV75: 12.78059362 | BW75: 37.68145957 | BX75: 111.097531 | BY75: 239.2623543 | BZ75: 433.8115125 | CA75: 705.4253504 | CB75: 1064.083809 | CC75: 1519.221251 | CD75: 2079.829593 | CE75: 2754.531405 | CF75: 3551.63414 | CG75: 4479.171773 | CH75: 6756.511029 | CI75: 9646.453651 | CJ75: 13206.09474 | CK75: 17490.1842 | CL75: 22551.47108 | CM75: 35208.15948 | CN75: 42901.17086 | CO75: 61251.16269 | CP75: 1e-10 | CS75: 66 | CT75: 0.198 | CU75: 142.6741502 | CV75: 0.04949323712 | CW75: 0.5689577442 | CX75: 14.02326676 | CY75: 0.694056867 | DA75: 1.103916918 | DB75: 0.772947253 | DC75: 1.402326676 | DD75: 69.4056867 | DF75: 96.59146094 | DG75: 1.32025942
BU76: 7.2 | BV76: 12.87028309 | BW76: 37.94589411 | BX76: 111.8771724 | BY76: 240.9414089 | BZ76: 436.8558411 | CA76: 710.3757645 | CB76: 1071.551155 | CC76: 1529.882584 | CD76: 2094.425068 | CE76: 2773.861687 | CF76: 3576.558194 | CG76: 4510.604943 | CH76: 6803.925723 | CI76: 9714.148893 | CJ76: 13298.77022 | CK76: 17612.92384 | CL76: 22709.72896 | CM76: 35455.23732 | CN76: 43202.2354 | CO76: 61681.00069 | CP76: 1e-10 | CS76: 67 | CT76: 0.201 | CU76: 140.2462519 | CV76: 0.05034280213 | CW76: 0.5753139673 | CX76: 14.07862613 | CY76: 0.7087574893 | DA76: 1.108274828 | DB76: 0.7893188303 | DC76: 1.407862613 | DD76: 70.87574893 | DF76: 96.59146094 | DG76: 1.32025942
BU77: 7.3 | BV77: 12.95935186 | BW77: 38.20849859 | BX77: 112.6514181 | BY77: 242.6088434 | BZ77: 439.879101 | CA77: 715.2919184 | CB77: 1078.966822 | CC77: 1540.470133 | CD77: 2108.919532 | CE77: 2793.058191 | CF77: 3601.309757 | CG77: 4541.820575 | CH77: 6851.012276 | CI77: 9781.375639 | CJ77: 13390.80433 | CK77: 17734.81404 | CL77: 22866.89159 | CM77: 35700.60521 | CN77: 43501.21638 | CO77: 62107.86392 | CP77: 1e-10 | CS77: 68 | CT77: 0.204 | CU77: 137.799608 | CV77: 0.05118585861 | CW77: 0.5817192661 | CX77: 14.13067782 | CY77: =CX77*CV77 -> 0.7232908768 | DA77: 1.112372357 | DB77: 0.8055041639 | DC77: 1.413067782 | DD77: 72.32908768 | DF77: 96.59146094 | DG77: 1.32025942
BU78: 7.4 | BV78: 13.04781263 | BW78: 38.46931048 | BX78: 113.4203787 | BY78: 244.2648957 | BZ78: 442.8817236 | CA78: 720.1745138 | CB78: 1086.331869 | CC78: 1550.98541 | CD78: 2123.315054 | CE78: 2812.123656 | CF78: 3625.892362 | CG78: 4572.823123 | CH78: 6897.777408 | CI78: 9848.143483 | CJ78: 13482.2102 | CK78: 17855.8722 | CL78: 23022.9814 | CM78: 35944.29818 | CN78: 43798.15645 | CO78: 62531.8133 | CP78: 1e-10 | CS78: 69 | CT78: 0.207 | CU78: 135.3326347 | CV78: 0.05202196848 | CW78: 0.588177787 | CX78: 14.17938537 | CY78: 0.7376395389 | DA78: 1.116206634 | DB78: 0.8214837753 | DC78: 1.417938537 | DD78: 73.76395389 | DF78: 96.59146094 | DG78: 1.32025942
BU79: 7.5 | BV79: 13.13567768 | BW79: 38.728366 | BX79: 114.1841609 | BY79: 245.9097957 | BZ79: 445.8641258 | CA79: 725.0242286 | CB79: 1093.647318 | CC79: 1561.429874 | CD79: 2137.613634 | CE79: 2831.060729 | CF79: 3650.309421 | CG79: 4603.616893 | CH79: 6944.227612 | CI79: 9914.461697 | CJ79: 13573.00052 | CK79: 17976.11512 | CL79: 23178.02006 | CM79: 36186.35006 | CN79: 44093.09687 | CO79: 62952.90771 | CP79: 1e-10 | CQ79: =IF($BU79<=$R$9,$R$19,"") ->  | CS79: 70 | CT79: 0.21 | CU79: 132.843643 | CV79: 0.05285068264 | CW79: 0.5946939519 | CX79: 14.22470769 | CY79: 0.7517855118 | DA79: 1.119774425 | DB79: 0.8372376586 | DC79: 1.422470769 | DD79: 75.17855118 | DF79: 96.59146094 | DG79: 1.32025942
BU80: 7.6 | BV80: 13.22295889 | BW80: 38.98570017 | BX80: 114.942868 | BY80: 247.5437659 | BZ80: 448.8267107 | CA80: 729.8417183 | CB80: 1100.914158 | CC80: 1571.804937 | CD80: 2151.817203 | CE80: 2849.871971 | CF80: 3674.564236 | CG80: 4634.206046 | CH80: 6990.369167 | CI80: 9980.339244 | CJ80: 13663.18756 | CK80: 18095.55906 | CL80: 23332.02853 | CM80: 36426.79357 | CN80: 44386.07748 | CO80: 63371.20406 | CP80: 1e-10 | CS80: 71 | CT80: 0.213 | CU80: 130.330825 | CV80: 0.05367153984 | CW80: 0.6012724941 | CX80: 14.26659863 | CY80: 0.765710317 | DA80: 1.123072096 | DB80: 0.852745235 | DC80: 1.426659863 | DD80: 76.5710317 | DF80: 96.59146094 | DG80: 1.32025942
BU81: 7.7 | BV81: 13.30966774 | BW81: 39.24134685 | BX81: 115.6965998 | BY81: 249.1670211 | BZ81: 451.7698682 | CA81: 734.6276169 | CB81: 1108.133344 | CC81: 1582.111965 | CD81: 2165.927631 | CE81: 2868.559856 | CF81: 3698.659997 | CG81: 4664.594608 | CH81: 7036.208145 | CI81: 10045.78479 | CJ81: 13752.7832 | CK81: 18214.21973 | CL81: 23485.02708 | CM81: 36665.66035 | CN81: 44677.13684 | CO81: 63786.75739 | CP81: 1e-10 | CS81: 72 | CT81: 0.216 | CU81: 127.7922377 | CV81: 0.05448406546 | CW81: 0.6079185001 | CX81: 14.30500657 | CY81: 0.7793949145 | DA81: 1.126095583 | DB81: 0.8679853004 | DC81: 1.430500657 | DD81: 77.93949145 | DF81: 96.59146094 | DG81: 1.32025942
BU82: 7.8 | BV82: 13.39581536 | BW82: 39.4953388 | BX82: 116.4454529 | BY82: 250.7797694 | BZ82: 454.6939756 | CA82: 739.3825379 | CB82: 1115.305803 | CC82: 1592.352279 | CD82: 2179.946726 | CE82: 2887.126781 | CF82: 3722.599794 | CG82: 4694.786474 | CH82: 7081.75042 | CI82: 10110.80673 | CJ82: 13841.7989 | CK82: 18332.11235 | CL82: 23637.03531 | CM82: 36902.98101 | CN82: 44966.31227 | CO82: 64199.62097 | CP82: 1e-10 | CS82: 73 | CT82: 0.219 | CU82: 125.225785 | CV82: 0.05528777009 | CW82: 0.6146374576 | CX82: 14.33987386 | CY82: 0.7928196492 | DA82: 1.12884035 | DB82: 0.8829359656 | DC82: 1.433987386 | DD82: 79.28196492 | DF82: 96.59146094 | DG82: 1.32025942
BU83: 7.9 | BV83: 13.48141249 | BW83: 39.74770775 | BX83: 117.1895209 | BY83: 252.3822124 | BZ83: 457.5993979 | CA83: 744.107075 | CB83: 1122.43243 | CC83: 1602.527158 | CD83: 2193.87624 | CE83: 2905.575063 | CF83: 3746.386616 | CG83: 4724.785415 | CH83: 7127.001682 | CI83: 10175.41318 | CJ83: 13930.2458 | CK83: 18449.25164 | CL83: 23788.07222 | CM83: 37138.78521 | CN83: 45253.63987 | CO83: 64609.84637 | CP83: 1e-10 | CS83: 74 | CT83: 0.222 | CU83: 122.629196 | CV83: 0.05608214805 | CW83: 0.6214353118 | CX83: 14.37113621 | CY83: 0.8059641887 | DA83: 1.131301334 | DB83: 0.897574587 | DC83: 1.437113621 | DD83: 80.59641887 | DF83: 96.59146094 | DG83: 1.32025942
BU84: 8 | BV84: =(1/$R$8)*(((PI()*((BV$3/2)^2))/(2*PI()*(BV$3/2)))^(2/3))*(($BU84*0.01)^(1/2))*(PI()*((BV$3/2)^2))*1000 -> 13.56646957 | BW84: 39.99848442 | BX84: 117.9288943 | BY84: 253.974545 | BZ84: 460.486489 | CA84: 748.8018034 | CB84: 1129.514093 | CC84: 1612.637839 | CD84: 2207.717868 | CE84: 2923.906948 | CF84: =(1/$R$8)*(((PI()*((CF$3/2)^2))/(2*PI()*(CF$3/2)))^(2/3))*(($BU84*0.01)^(1/2))*(PI()*((CF$3/2)^2))*1000 -> 3770.023359 | CG84: 4754.595082 | CH84: 7171.967439 | CI84: 10239.61201 | CJ84: 14018.13466 | CK84: 18565.65186 | CL84: 23938.15618 | CM84: 37373.10164 | CN84: 45539.15463 | CO84: 65017.48351 | CP84: 1e-10 | CS84: 75 | CT84: 0.225 | CU84: 120 | CV84: 0.0568666756 | CW84: 0.6283185307 | CX84: 14.39872196 | CY84: 0.8188074509 | DA84: 1.133472895 | DB84: 0.9118776861 | DC84: 1.439872196 | DD84: 81.88074509 | DF84: 96.59146094 | DG84: 1.32025942
BU85: 8.1 | BV85: 13.65099668 | BW85: 40.24769857 | BX85: 118.6636609 | BY85: 255.5569562 | BZ85: 463.3555915 | CA85: 753.4672804 | CB85: 1136.551632 | CC85: 1622.685524 | CD85: 2221.473252 | CE85: 2942.124613 | CF85: 3793.512828 | CG85: 4784.219014 | CH85: 7216.653026 | CI85: 10303.41083 | CJ85: 14105.47591 | CK85: 18681.32683 | CL85: 24087.30502 | CM85: 37605.9581 | CN85: 45822.89042 | CO85: 65422.58078 | CP85: 1e-10 | CS85: 76 | CT85: 0.228 | CU85: 117.335497 | CV85: 0.05764080899 | CW85: 0.6352941832 | CX85: 14.42255122 | CY85: 0.8313275201 | DA85: 1.135348743 | DB85: 0.9258208564 | DC85: 1.442255122 | DD85: 83.13275201 | DF85: 96.59146094 | DG85: 1.32025942
BU86: 8.2 | BV86: 13.7350036 | BW86: 40.49537905 | BX86: 119.3939057 | BY86: 257.1296292 | BZ86: 466.2070374 | CA86: 758.1040459 | CB86: 1143.545862 | CC86: 1632.671376 | CD86: 2235.143986 | CE86: 2960.230167 | CF86: 3816.857743 | CG86: 4813.66064 | CH86: 7261.063618 | CI86: 10366.81704 | CJ86: 14192.27966 | CK86: 18796.28992 | CL86: 24235.53599 | CM86: 37837.38157 | CN86: 46104.8801 | CO86: 65825.18508 | CP86: 1e-10 | CS86: 77 | CT86: 0.231 | CU86: 114.6327223 | CV86: 0.05840398226 | CW86: 0.6423700309 | CX86: 14.44253484 | CY86: 0.8435015486 | DA86: 1.136921861 | DB86: 0.9393786531 | DC86: 1.444253484 | DD86: 84.35015486 | DF86: 96.59146094 | DG86: 1.32025942
BU87: 8.3 | BV87: 13.81849983 | BW87: 40.74155384 | BX87: 120.1197112 | BY87: 258.6927417 | BZ87: 469.0411489 | CA87: 762.7126235 | CB87: 1150.497573 | CC87: 1642.596521 | CD87: 2248.731612 | CE87: 2978.225652 | CF87: 3840.060739 | CG87: 4842.923284 | CH87: 7305.204229 | CI87: 10429.83778 | CJ87: 14278.55571 | CK87: 18910.55413 | CL87: 24382.86583 | CM87: 38067.39817 | CN87: 46385.15551 | CO87: 66225.34187 | CP87: 1e-10 | CS87: 78 | CT87: 0.234 | CU87: 111.8884045 | CV87: 0.0591556047 | CW87: 0.649554638 | CX87: 14.45857319 | CY87: 0.8553056401 | DA87: 1.138184406 | DB87: 0.9525244637 | DC87: 1.445857319 | DD87: 85.53056401 | DF87: 96.59146094 | DG87: 1.32025942
BU88: 8.4 | BV88: 13.90149457 | BW88: 40.98625005 | BX88: 120.8411574 | BY88: 260.2464658 | BZ88: 471.8582381 | CA88: 767.2935213 | CB88: 1157.40753 | CC88: 1652.462054 | CD88: 2262.237629 | CE88: 2996.113054 | CF88: 3863.124375 | CG88: 4872.010172 | CH88: 7349.079724 | CI88: 10492.48001 | CJ88: 14364.31357 | CK88: 19024.13206 | CL88: 24529.31078 | CM88: 38296.03324 | CN88: 46663.74754 | CO88: 66623.09525 | CP88: 1e-10 | CS88: 79 | CT88: 0.237 | CU88: 109.0989147 | CV88: 0.05989505788 | CW88: 0.6568575052 | CX88: 14.4705547 | CY88: 0.8667147114 | DA88: 1.139127595 | DB88: 0.9652303539 | DC88: 1.44705547 | DD88: 86.67147114 | DF88: 96.59146094 | DG88: 1.32025942
BU89: 8.5 | BV89: 13.98399675 | BW89: 41.22949403 | BX89: 121.5583219 | BY89: 261.7909688 | BZ89: 474.6586084 | CA89: 771.8472321 | CB89: 1164.276478 | CC89: 1662.269037 | CD89: 2275.66349 | CE89: 3013.894297 | CF89: 3886.05113 | CG89: 4900.924432 | CH89: 7392.694823 | CI89: 10554.75047 | CJ89: 14449.56247 | CK89: 19137.03591 | CL89: 24674.88661 | CM89: 38523.3114 | CN89: 46940.68616 | CO89: 67018.48801 | CP89: 1e-10 | CS89: 80 | CT89: 0.24 | CU89: 106.2602047 | CV89: 0.0606216923 | CW89: 0.6642892307 | CX89: 14.47835409 | CY89: 0.8777023266 | DA89: 1.139741566 | DB89: 0.9774668829 | DC89: 1.447835409 | DD89: 87.77023266 | DF89: 96.59146094 | DG89: 1.32025942
BU90: 8.6 | BV90: 14.06601503 | BW90: 41.47131132 | BX90: 122.27128 | BY90: 263.3264128 | BZ90: 477.4425537 | CA90: 776.3742341 | CB90: 1171.105137 | CC90: 1672.018499 | CD90: 2289.010604 | CE90: 3031.571248 | CF90: 3908.843414 | CG90: 4929.669104 | CH90: 7436.054109 | CI90: 10616.6557 | CJ90: 14534.31137 | CK90: 19249.27755 | CL90: 24819.60859 | CM90: 38749.25651 | CN90: 47216.00046 | CO90: 67411.56169 | CP90: 1e-10 | CS90: 81 | CT90: 0.243 | CU90: 103.3677311 | CV90: 0.06133482342 | CW90: 0.671861709 | CX90: 14.48183018 | CY90: 0.8882404966 | DA90: 1.140015205 | DB90: 0.9892028803 | DC90: 1.448183018 | DD90: 88.82404966 | DE90: =DC$5 -> 1.4481975 | DF90: 96.59146094 | DG90: 1.32025942
BU91: 8.7 | BV91: 14.14755783 | BW91: 41.71172673 | BX91: 122.980105 | BY91: 264.8529556 | BZ91: 480.2103598 | CA91: 780.874992 | CB91: 1177.89421 | CC91: 1681.711441 | CD91: 2302.280342 | CE91: 3049.145721 | CF91: 3931.503566 | CG91: 4958.247135 | CH91: 7479.16203 | CI91: 10678.20204 | CJ91: 14618.56895 | CK91: 19360.8685 | CL91: 24963.49159 | CM91: 38973.89177 | CN91: 47489.7187 | CO91: 67802.35662 | CP91: 1e-10 | CS91: 82 | CT91: 0.246 | CU91: 100.416361 | CV91: 0.06203372701 | CW91: 0.6795883777 | CX91: 14.48082323 | CY91: 0.8982994351 | DA91: 1.139935938 | DB91: 1.000405174 | DC91: 1.448082323 | DD91: 89.82994351 | DE91: 1.4481975 | DF91: 96.59146094 | DG91: 1.32025942
BU92: 8.8 | BV92: 14.22863332 | BW92: 41.95076437 | BX92: 123.6848678 | BY92: 266.37075 | BZ92: 482.9623042 | CA92: 785.349957 | CB92: 1184.644375 | CC92: 1691.348835 | CD92: 2315.474034 | CE92: 3066.619479 | CF92: 3954.033857 | CG92: 4986.661391 | CH92: 7522.022908 | CI92: 10739.39568 | CJ92: 14702.34367 | CK92: 19471.81995 | CL92: 25106.55001 | CM92: 39197.23968 | CN92: 47761.86831 | CO92: 68190.91199 | CP92: 1e-10 | CS92: 83 | CT92: 0.249 | CU92: 97.40025442 | CV92: 0.06271763362 | CW92: 0.6874845263 | CX92: 14.47515163 | CY92: 0.9078472564 | DA92: 1.139489467 | DB92: 1.011038254 | DC92: 1.447515163 | DD92: 90.78472564 | DE92: 1.4481975 | DF92: 96.59146094 | DG92: 1.32025942
BU93: 8.9 | BV93: 14.30924945 | BW93: 42.18844766 | BX93: 124.3856375 | BY93: 267.8799448 | BZ93: 485.6986564 | CA93: 789.7995674 | CB93: 1191.356295 | CC93: 1700.931624 | CD93: 2328.592972 | CE93: 3083.994232 | CF93: 3976.436494 | CG93: 5014.914657 | CH93: 7564.640943 | CI93: 10800.2426 | CJ93: 14785.64373 | CK93: 19582.14275 | CL93: 25248.7979 | CM93: 39419.32213 | CN93: 48032.47596 | CO93: 68577.26586 | CP93: 1e-10 | CS93: 84 | CT93: 0.252 | CU93: 94.31271391 | CV93: 0.06338572193 | CW93: 0.6955676884 | CX93: 14.46460768 | CY93: 0.9168496002 | DA93: 1.138659443 | DB93: 1.021063855 | DC93: 1.446460768 | DD93: 91.68496002 | DE93: 1.4481975 | DF93: 96.59146094 | DG93: 1.32025942
BU94: 9 | BV94: =(1/$R$8)*(((PI()*((BV$3/2)^2))/(2*PI()*(BV$3/2)))^(2/3))*(($BU94*0.01)^(1/2))*(PI()*((BV$3/2)^2))*1000 -> 14.38941394 | BW94: 42.42479935 | BX94: 125.0824813 | BY94: 269.3806845 | BZ94: 488.4196786 | CA94: 794.2242495 | CB94: 1198.030612 | CC94: 1710.460728 | CD94: 2341.638413 | CE94: 3101.271646 | CF94: =(1/$R$8)*(((PI()*((CF$3/2)^2))/(2*PI()*(CF$3/2)))^(2/3))*(($BU94*0.01)^(1/2))*(PI()*((CF$3/2)^2))*1000 -> 3998.713624 | CG94: 5043.009636 | CH94: 7607.020215 | CI94: 10860.74863 | CJ94: 14868.47712 | CK94: 19691.84749 | CL94: 25390.24885 | CM94: 39640.1604 | CN94: 48301.56757 | CO94: 68961.45523 | CP94: 1e-10 | CS94: 85 | CT94: 0.255 | CU94: 91.145992 | CV94: 0.0640371108 | CW94: 0.703858147 | CX94: 14.44895226 | CY94: 0.9252691565 | DA94: 1.137427042 | DB94: 1.030440425 | DC94: 1.444895226 | DD94: 92.52691565 | DE94: 1.4481975 | DF94: 96.59146094 | DG94: 1.32025942
BU95: 9.1 | BV95: 14.4691343 | BW95: 42.65984159 | BX95: 125.7754643 | BY95: 270.8731097 | BZ95: 491.1256255 | CA95: 798.6244175 | CB95: 1204.667952 | CC95: 1719.937037 | CD95: 2354.611578 | CE95: 3118.453338 | CF95: 4020.867331 | CG95: 5070.948962 | CH95: 7649.164694 | CI95: 10920.91945 | CJ95: 14950.85158 | CK95: 19800.94444 | CL95: 25530.91613 | CM95: 39859.77516 | CN95: 48569.16833 | CO95: 69343.51608 | CP95: 1e-10 | CS95: 86 | CT95: 0.258 | CU95: 87.89103912 | CV95: 0.06467084935 | CW95: 0.7123795937 | CX95: 14.42790787 | CY95: 0.9330650563 | DA95: 1.13577042 | DB95: 1.03912245 | DC95: 1.442790787 | DD95: 93.30650563 | DE95: 1.4481975 | DF95: 96.59146094 | DG95: 1.32025942
BU96: 9.2 | BV96: 14.54841782 | BW96: 42.8935959 | BX96: 126.4646501 | BY96: 272.357357 | BZ96: 493.8167449 | CA96: 803.0004744 | CB96: 1211.268921 | CC96: 1729.36142 | CD96: 2367.513656 | CE96: 3135.540881 | CF96: 4042.899646 | CG96: 5098.735191 | CH96: 7691.078239 | CI96: 10980.76055 | CJ96: 15032.77467 | CK96: 19909.44357 | CL96: 25670.8126 | CM96: 40078.18652 | CN96: 48835.30275 | CO96: 69723.48339 | CP96: 1e-10 | CS96: 87 | CT96: 0.261 | CU96: 84.53716886 | CV96: 0.06528590478 | CW96: 0.7211600055 | CX96: 14.40114955 | CY96: 0.940192078 | DA96: 1.133663995 | DB96: 1.047059569 | DC96: 1.440114955 | DD96: 94.0192078 | DE96: 1.4481975 | DF96: 96.59146094 | DG96: 1.32025942
BU97: 9.3 | BV97: 14.62727161 | BW97: 43.12608321 | BX97: 127.1501004 | BY97: 273.8335594 | BZ97: 496.493278 | CA97: 807.3528124 | CB97: 1217.834113 | CC97: 1738.734721 | CD97: 2380.345802 | CE97: 3152.535807 | CF97: 4064.812542 | CG97: 5126.370815 | CH97: 7732.764605 | CI97: 11040.2773 | CJ97: 15114.25372 | CK97: 20017.35463 | CL97: 25809.95082 | CM97: 40295.41405 | CN97: 49099.99468 | CO97: 70101.39122 | CP97: 1e-10 | CS97: 88 | CT97: 0.264 | CU97: 81.07160422 | CV97: 0.06588114698 | CW97: 0.7302328325 | CX97: 14.36829254 | CY97: 0.9465995924 | DA97: 1.131077478 | DB97: 1.054195397 | DC97: 1.436829254 | DD97: 94.65995924 | DE97: 1.4481975 | DF97: 96.59146094 | DG97: 1.32025942
BU98: 9.4 | BV98: 14.70570258 | BW98: 43.35732392 | BX98: 127.8318752 | BY98: 275.3018464 | BZ98: 499.1554595 | CA98: 811.681813 | CB98: 1224.364101 | CC98: 1748.057763 | CD98: 2393.109142 | CE98: 3169.439606 | CF98: 4086.607939 | CG98: 5153.858255 | CH98: 7774.227447 | CI98: 11099.47492 | CJ98: 15195.29588 | CK98: 20124.68706 | CL98: 25948.34297 | CM98: 40511.4768 | CN98: 49363.26731 | CO98: 70477.27269 | CP98: 1e-10 | CS98: 89 | CT98: 0.267 | CU98: 77.4788492 | CV98: 0.06645532871 | CW98: 0.7396386432 | CX98: 14.3288755 | CY98: 0.9522301312 | DA98: 1.127974554 | DB98: 1.060465935 | DC98: 1.43288755 | DD98: 95.22301312 | DE98: 1.4481975 | DF98: 96.59146094 | DG98: 1.32025942
BU99: 9.5 | BV99: 14.78371747 | BW99: 43.58733787 | BX99: 128.5100332 | BY99: 276.7623439 | BZ99: 501.8035176 | CA99: 815.9878475 | CB99: 1230.859447 | CC99: 1757.331344 | CD99: 2405.80477 | CE99: 3186.253727 | CF99: 4108.287709 | CG99: 5181.19987 | CH99: 7815.470323 | CI99: 11158.35849 | CJ99: 15275.90809 | CK99: 20231.45007 | CL99: 26086.00093 | CM99: 40726.39331 | CN99: 49625.14325 | CO99: 70851.16005 | CP99: 1e-10 | CS99: 90 | CT99: 0.27 | CU99: 73.73979529 | CV99: 0.06700705976 | CW99: 0.7494274634 | CX99: 14.28233677 | CY99: 0.9570173935 | DA99: 1.124311008 | DB99: 1.065797344 | DC99: 1.428233677 | DD99: 95.70173935 | DE99: 1.4481975 | DF99: 96.59146094 | DG99: 1.32025942
BU100: 9.6 | BV100: 14.86132282 | BW100: 43.81614436 | BX100: 129.1846312 | BY100: 278.2151746 | BZ100: 504.4376749 | CA100: 820.2712777 | CB100: 1237.320696 | CC100: 1766.556243 | CD100: 2418.433753 | CE100: 3202.979583 | CF100: 4129.853672 | CG100: 5208.397956 | CH100: 7856.496696 | CI100: 11216.93296 | CJ100: 15356.09714 | CK100: 20337.65264 | CL100: 26222.93625 | CM100: 40940.18162 | CN100: 49885.64448 | CO100: 71223.0847 | CP100: 1e-10 | CS100: 91 | CT100: 0.273 | CU100: 69.83041249 | CV100: 0.06753477223 | CW100: 0.7596622037 | CX100: 14.22797996 | CY100: 0.9608833856 | DA100: 1.120032019 | DB100: 1.070102766 | DC100: 1.422797996 | DD100: 96.08833856 | DE100: 1.4481975 | DF100: 96.59146094 | DG100: 1.32025942
BU101: 9.7 | BV101: 14.93852501 | BW101: 44.04376223 | BX101: 129.8557247 | BY101: 279.660458 | BZ101: 507.058148 | CA101: 824.5324559 | CB101: 1243.748379 | CC101: 1775.733221 | CD101: 2430.99713 | CE101: 3219.61855 | CF101: 4151.307602 | CG101: 5235.454751 | CH101: 7897.30994 | CI101: 11275.20313 | CJ101: 15435.86961 | CK101: 20443.30349 | CL101: 26359.16022 | CM101: 41152.85932 | CN101: 50144.79243 | CO101: 71593.07724 | CP101: 1e-10 | CS101: 92 | CT101: 0.276 | CU101: 65.71976076 | CV101: 0.06803667279 | CW101: 0.7704238648 | CX101: 14.16492212 | CY101: 0.9637341712 | DA101: 1.115068081 | DB101: 1.073277588 | DC101: 1.416492212 | DD101: 96.37341712 | DE101: 1.4481975 | DF101: 96.59146094 | DG101: 1.32025942
BU102: 9.8 | BV102: 15.01533027 | BW102: 44.2702098 | BX102: 130.5233678 | BY102: 281.0983104 | BZ102: 509.665148 | CA102: 828.7717252 | CB102: 1250.143014 | CC102: 1784.863015 | CD102: 2443.495912 | CE102: 3236.171968 | CF102: 4172.651226 | CG102: 5262.372434 | CH102: 7937.913344 | CI102: 11333.17371 | CJ102: 15515.23193 | CK102: 20548.41115 | CL102: 26494.68378 | CM102: 41364.44354 | CN102: 50402.60797 | CO102: 71961.16747 | CP102: 1e-10 | CS102: 93 | CT102: 0.279 | CU102: 61.36683422 | CV102: 0.06851067452 | CW102: 0.7818197998 | CX102: 14.0920124 | CY102: 0.9654532749 | DA102: 1.109328601 | DB102: 1.075192095 | DC102: 1.40920124 | DD102: 96.54532749 | DE102: 1.4481975 | DF102: 96.59146094 | DG102: 1.32025942
BU103: 9.9 | BV103: 15.09174466 | BW103: 44.49550494 | BX103: 131.1876131 | BY103: 282.5288454 | BZ103: 512.2588805 | CA103: 832.9894203 | CB103: 1256.505106 | CC103: 1793.946346 | CD103: 2455.931086 | CE103: 3252.641143 | CF103: 4193.88623 | CG103: 5289.153128 | CH103: 7978.31011 | CI103: 11390.84927 | CJ103: 15594.19036 | CK103: 20652.98389 | CL103: 26629.51765 | CM103: 41574.95097 | CN103: 50659.11145 | CO103: 72327.38443 | CP103: 1e-10 | CS103: 94 | CT103: 0.282 | CU103: 56.71527315 | CV103: 0.0689542958 | CW103: 0.7939975582 | CX103: 14.00769697 | CY103: 0.9658908805 | DA103: 1.102691258 | DB103: 1.075679441 | DC103: 1.400769697 | DD103: 96.58908805 | DE103: 1.4481975 | DF103: 96.59146094 | DG103: 1.32025942
BU104: 10 | BV104: 15.16777408 | BW104: 44.71966508 | BX104: 131.8485121 | BY104: 283.9521735 | BZ104: 514.8395461 | CA104: 837.1858671 | CB104: 1262.835147 | CC104: 1802.983916 | CD104: 2468.303614 | CE104: 3269.027348 | CF104: 4215.014254 | CG104: 5315.798904 | CH104: 8018.503362 | CI104: 11448.23426 | CJ104: 15672.75101 | CK104: 20757.02981 | CL104: 26763.67224 | CM104: 41784.39789 | CN104: 50914.32269 | CO104: 72691.75643 | CP104: 1e-10 | CS104: 95 | CT104: 0.285 | CU104: 51.68386553 | CV104: 0.0693645018 | CW104: 0.8071697525 | CX104: 13.90977887 | CY104: 0.9648448815 | DA104: 1.094983108 | DB104: 1.074514548 | DC104: 1.390977887 | DD104: 96.48448815 | DE104: 1.4481975 | DG104: 1.32025942
CS105: 96 | CT105: =R$10/100*CS105 -> 0.288 | CU105: =IF(CT105>($R$10/2),4*(ACOS((CT105/$R$10)^0.5))*360/(2*PI()),4*(ASIN((CT105/$R$10)^0.5))*360/(2*PI())) -> 46.14783613 | CV105: =IF(CT105>($R$10/2),(($R$10^2)/8)*((PI()*2-(PI()*CU105/180)+(SIN(CU105*2*PI()/360)))),(($R$10)^2)/8*((PI()*CU105/180-SIN(CU105*2*PI()/360)))) -> 0.0697374383 | CW105: 0.8216630436 | CX105: =(1/$R$8)*((CV105/CW105)^(2/3))*($R$9^(1/2)) -> 13.79494972 | CY105: 0.9620244548 | DA105: 1.085943713 | DB105: 1.071373536 | DC105: 1.379494972 | DD105: 96.20244548 | DE105: 1.4481975 | DG105: 1.32025942
CS106: 97 | CT106: 0.291 | CU106: 39.89688718 | CV106: 0.07006793868 | CW106: 0.8380279897 | CX106: 13.65775053 | CY106: 0.9569704267 | DA106: 1.07514334 | DB106: 1.065745039 | DC106: 1.365775053 | DD106: 95.69704267 | DE106: 1.4481975 | DG106: 1.32025942
CS107: 98 | CT107: 0.294 | CU107: 32.52040942 | CV107: 0.07034846725 | CW107: 0.8573395633 | CX107: 13.48775951 | CY107: 0.948843208 | DA107: 1.061761582 | DB107: 1.056694035 | DC107: 1.348775951 | DD107: 94.8843208 | DE107: 1.4481975 | DG107: 1.32025942
CS108: 99 | CT108: 0.297 | CU108: 22.95668191 | CV108: 0.07056619535 | CW108: 0.8823773434 | CX108: 13.2586773 | CY108: 0.9356144125 | DA108: 1.043728143 | DB108: 1.04196158 | DC108: 1.32586773 | DD108: 93.56144125 | DE108: 1.4481975 | DG108: 1.32025942
CS109: 100 | CT109: 0.3 | CU109: 0 | CV109: 0.07068583471 | CW109: 0.9424777961 | CX109: 12.70319037 | CY109: 0.897935615 | DA109: 1 | DB109: 1 | DC109: 1.270319037 | DD109: 89.7935615 | DE109: 1.4481975 | DG109: 1.32025942
